Workbook

Sheet Macros Required
B1: Macros Required - Profit Contribution
B3: Macros must be enabled for this application to function.
B5: Please refer to your spreadsheet Help for details on how to enable macros.
B7: Suitability must be independently assessed and use indicates acceptance of any and all associated risk.

Sheet Welcome
B1: Profit Contribution
B3: Build: 20211120 by bizpep.com
B5: Profit Contribution breakdown allows you to identify the level of surplus/profit generated by components of your business. Default breakdown is five Customer Segments and five Product Groups. Overall variable and fixed expenses are allocated to components by applying relative indicators. This effectively allocates expenses to component areas based on the amount of expense (resource) they demand. Indicators for future potential and business ability are combined with component performance data to identify areas offering the greatest opportunity for development. Summary recommendations are provided for each breakdown and results presented in graphical and tabular form. This business tool can analyze any chosen component of an overall business or product line.
B7: To start use the sheet tabs to select an Input sheet.
B8: Input is in the blue cells. Non-input cells are protected to maintain formula integrity.
B9: Instructions…
B11: =IF(Scratch!B55=TRUE,"Current license subscriptions can be managed directly from your PayPal account.","In evaluation mode functionality is restriced.") -> In evaluation mode functionality is restriced.
B12: =IF(Scratch!B55=TRUE,"On renewal new License Details will be emailed. You can purchase at new license at:","To fully enable this application please purchase a license at:") -> To fully enable this application please purchase a license at:
B13: https://bizpep.com/profitcontribution.html?display=license
B14: =IF(Scratch!B55=TRUE,"Current license details fully enable your application","License Details are sent by email, on reciept input license details to fully enable your application.") -> License Details are sent by email, on reciept input license details to fully enable your application.
B17: Application License Details:
B18: Licensed Email Address:
B19: License Code:
B20: License Valid to Date: | C20: =IF(Scratch!B55=TRUE,Scratch!C55,"Not Licensed, for Evaluation Only.") -> Not Licensed, for Evaluation Only.
B22: Suitability must be independently assessed and use indicates acceptance of any and all associated risk.
B50: =IF(Scratch!B55=TRUE,"Licensed to "&Welcome!C11, Welcome!C13&" In evaluation mode functionality is limited.") -> In evaluation mode functionality is limited.
B53: =IFERROR(AND(ISTEXT(Welcome!C18),LEN(Welcome!C18)>6),FALSE) -> FALSE
B54: =IFERROR(AND(ISNUMBER(INT(Welcome!C19)),LEN(Welcome!C19)>8),FALSE) -> FALSE | C54: =IFERROR(Welcome!C19/Scratch!E57/E41,FALSE) -> FALSE
C58: =MID(Welcome!$C$18,B58,1) -> 
C59: =MID(Welcome!$C$18,B59,1) -> 
C60: =MID(Welcome!$C$18,B60,1) -> 
C61: =MID(Welcome!$C$18,B61,1) -> 
C62: =MID(Welcome!$C$18,B62,1) -> 
C63: =MID(Welcome!$C$18,B63,1) -> 
C64: =MID(Welcome!$C$18,B64,1) -> 
C65: =MID(Welcome!$C$18,B65,1) -> 
C66: =MID(Welcome!$C$18,B66,1) -> 
C67: =MID(Welcome!$C$18,B67,1) -> 
C68: =MID(Welcome!$C$18,B68,1) -> 
C69: =MID(Welcome!$C$18,B69,1) -> 
C70: =MID(Welcome!$C$18,B70,1) -> 
C71: =MID(Welcome!$C$18,B71,1) -> 
C72: =MID(Welcome!$C$18,B72,1) -> 
C73: =MID(Welcome!$C$18,B73,1) -> 
C74: =MID(Welcome!$C$18,B74,1) -> 
C75: =MID(Welcome!$C$18,B75,1) -> 
C76: =MID(Welcome!$C$18,B76,1) -> 
C77: =MID(Welcome!$C$18,B77,1) -> 
C78: =MID(Welcome!$C$18,B78,1) -> 
C79: =MID(Welcome!$C$18,B79,1) -> 
C80: =MID(Welcome!$C$18,B80,1) -> 
C81: =MID(Welcome!$C$18,B81,1) -> 
C82: =MID(Welcome!$C$18,B82,1) -> 
C83: =MID(Welcome!$C$18,B83,1) -> 
C84: =MID(Welcome!$C$18,B84,1) -> 
C85: =MID(Welcome!$C$18,B85,1) -> 
C86: =MID(Welcome!$C$18,B86,1) -> 
C87: =MID(Welcome!$C$18,B87,1) -> 
C88: =MID(Welcome!$C$18,B88,1) -> 
C89: =MID(Welcome!$C$18,B89,1) -> 
C90: =MID(Welcome!$C$18,B90,1) -> 
C91: =MID(Welcome!$C$18,B91,1) -> 
C92: =MID(Welcome!$C$18,B92,1) -> 
C93: =MID(Welcome!$C$18,B93,1) -> 
C94: =MID(Welcome!$C$18,B94,1) -> 
C95: =MID(Welcome!$C$18,B95,1) -> 
C96: =MID(Welcome!$C$18,B96,1) -> 
C97: =MID(Welcome!$C$18,B97,1) -> 
C98: =MID(Welcome!$C$18,B98,1) -> 
C99: =MID(Welcome!$C$18,B99,1) -> 
C100: =MID(Welcome!$C$18,B100,1) -> 
C101: =MID(Welcome!$C$18,B101,1) -> 
C102: =MID(Welcome!$C$18,B102,1) -> 
C103: =MID(Welcome!$C$18,B103,1) -> 
C104: =MID(Welcome!$C$18,B104,1) -> 
C105: =MID(Welcome!$C$18,B105,1) -> 
C106: =MID(Welcome!$C$18,B106,1) -> 
C107: =MID(Welcome!$C$18,B107,1) -> 

Sheet Input Overall Performance Data
B5: ="Input Performance Data - "&title -> Input Performance Data - Profit Contribution
B6: Blue cells require input. View comments by positioning your mouse over the red marker cell or click the hyperlink for the
B7: Instruction Sheet
B9: Overall Performance Data | E9: This section reviews overall performance for a full year.
B11: Business Name or Identifier | D11: Acme Widgets | G11: This appears on the Output Sheets.
B13: Revenue
B14: Revenue | D14: 500000 | E14: Input your annual overall revenue.
B16: Expenses | D16: Monetary | E16: =+IF(D16=B51,B52,B51) -> Percent | F16: Set the Expense Input as Monetary or Percent.
B17: Variable Costs | F17: Annual costs that vary with the level of revenue.
B18: Materials & Supplies | D18: 10000 | E18: =+IF(E$16=B$52,D18/D$14*100,D18/100*D$14) -> 2 | F18: Input annual value or percentage cost for category.
B19: Labor excluding Owner | D19: 200000 | E19: 40 | F19: Input annual value or percentage cost for category.
B20: Labor Owner | D20: 50000 | E20: 10 | F20: Input annual value or percentage cost for category.
B21: Distribution | D21: 20000 | E21: 4 | F21: Input annual value or percentage cost for category.
B22: Marketing | D22: 10000 | E22: 2 | F22: Input annual value or percentage cost for category.
B23: Other | D23: 20000 | E23: 4 | F23: Input annual value or percentage cost for category.
B24: Total Variable Costs | D24: =SUM(D18:D23) -> 310000 | E24: 62 | F24: Total Variable Costs and their % of Revenue.
B25: Fixed Costs | F25: Annual costs that do not vary with revenue.
B26: Location | D26: 40000 | E26: =+IF(E$16=B$52,D26/D$14*100,D26/100*D$14) -> 8 | F26: Input annual value or percentage cost for category.
B27: Administration | D27: 30000 | E27: 6 | F27: Input annual value or percentage cost for category.
B28: Labor excluding Owner | D28: 50000 | E28: 10 | F28: Input annual value or percentage cost for category.
B29: Labor Owner | D29: 10000 | E29: 2 | F29: Input annual value or percentage cost for category.
B30: Interest Costs | D30: 0 | E30: 0 | F30: Input annual value or percentage cost for category.
B31: Other | D31: 0 | E31: 0 | F31: Input annual value or percentage cost for category.
B32: Total Fixed Costs | D32: =SUM(D26:D31) -> 130000 | E32: 26 | F32: Total Fixed Costs and their % of Revenue.
B33: Operating Surplus/Profit | D33: =+IF(D$16=B$52,100-D24-D32,D14-D24-D32) -> 60000 | E33: 12 | F33: Revenue less variable and fixed costs.
B35: ="Input Customer and Product Data - "&title -> Input Customer and Product Data - Profit Contribution
B37: Input Customer Segment Data
B39: Input Product Group Data
B51: Monetary
B52: Percent

Sheet Input Customer Segment Data
B5: ="Input Customer Segment Data - "&title -> Input Customer Segment Data - Profit Contribution
B6: Blue cells require input. View comments by positioning your mouse over the red marker cell or click the hyperlink for the
B7: Instruction Sheet
B9: Customer Segments | D9: Customer Segment 1 | E9: Customer Segment 2 | F9: Customer Segment 3 | G9: Customer Segment 4 | H9: Customer Segment 5 | I9: Total/ Average
B11: =+'Input Overall Performance Data'!B14:C14 -> Revenue | C11: Percent | D11: 30 | E11: 15 | F11: 25 | G11: 23 | H11: =I11-SUM(D11:G11) -> 7 | I11: =IF($C11=$B90,100,'Input Overall Performance Data'!D14) -> 100
C12: =IF(C11=B89,B90,B89) -> Monetary | D12: =IF($C12=$B90,D11/$I11*100,D11/100*$I12) -> 150000 | E12: =IF($C12=$B90,E11/$I11*100,E11/100*$I12) -> 75000 | F12: =IF($C12=$B90,F11/$I11*100,F11/100*$I12) -> 125000 | G12: =IF($C12=$B90,G11/$I11*100,G11/100*$I12) -> 115000 | H12: =IF($C12=$B90,H11/$I11*100,H11/100*$I12) -> 35000 | I12: =IF($C12=$B89,'Input Overall Performance Data'!D14,100) -> 500000
B13: Transaction | C13: Num Sales | D13: 4556 | E13: 433 | F13: 222 | G13: 2341 | H13: 678 | I13: =IF(C13=B91,Worksheet!H53,Worksheet!H51) -> 8230
C14: =IF(C13=B91,B92,B91) -> Price | D14: =+Worksheet!C49/D13 -> 32.92361721 | E14: =+Worksheet!D49/E13 -> 173.2101617 | F14: =+Worksheet!E49/F13 -> 563.0630631 | G14: =+Worksheet!F49/G13 -> 49.12430585 | H14: =+Worksheet!G49/H13 -> 51.62241888 | I14: =+Worksheet!H49/I13 -> 60.75334143
B15: Relative Indicator reference | C15: Monetary
B16: =+'Input Overall Performance Data'!B17:C17 -> Variable Costs
B17: =+'Input Overall Performance Data'!B18:C18 -> Materials & Supplies | D17: 90 | E17: 110 | F17: 120 | G17: 123 | H17: 100
B18: =+'Input Overall Performance Data'!B19:C19 -> Labor excluding Owner | D18: 80 | E18: 120 | F18: 89 | G18: 99 | H18: 68
B19: =+'Input Overall Performance Data'!B20:C20 -> Labor Owner | D19: 120 | E19: 110 | F19: 100 | G19: 90 | H19: 95
B20: =+'Input Overall Performance Data'!B21:C21 -> Distribution | D20: 100 | E20: 0 | F20: 67 | G20: 89 | H20: 90
B21: =+'Input Overall Performance Data'!B22:C22 -> Marketing | D21: 70 | E21: 65 | F21: 130 | G21: 145 | H21: 100
B22: =+'Input Overall Performance Data'!B23:C23 -> Other | D22: 100 | E22: 67 | F22: 100 | G22: 90 | H22: 100
B23: =+'Input Overall Performance Data'!B24:C24 -> Total Variable Costs | D23: =+Worksheet!C86 -> 88605.27788 | E23: =+Worksheet!D86 -> 51717.53438 | F23: =+Worksheet!E86 -> 76249.39272 | G23: =+Worksheet!F86 -> 75341.59737 | H23: =+Worksheet!G86 -> 18086.19765 | I23: =+Worksheet!H86 -> 310000
B24: =+'Input Overall Performance Data'!B25:C25 -> Fixed Costs
B25: =+'Input Overall Performance Data'!B26:C26 -> Location | D25: 115 | E25: 90 | F25: 70 | G25: 110 | H25: 97
B26: =+'Input Overall Performance Data'!B27:C27 -> Administration | D26: 85 | E26: 120 | F26: 134 | G26: 95 | H26: 100
B27: =+'Input Overall Performance Data'!B28:C28 -> Labor excluding Owner | D27: 100 | E27: 100 | F27: 110 | G27: 100 | H27: 90
B28: =+'Input Overall Performance Data'!B29:C29 -> Labor Owner | D28: 0 | E28: 80 | F28: 120 | G28: 100 | H28: 95
B29: =+'Input Overall Performance Data'!B30:C30 -> Interest Costs | D29: 120 | E29: 100 | F29: 80 | G29: 100 | H29: 100
B30: =+'Input Overall Performance Data'!B31:C31 -> Other | D30: 100 | E30: 100 | F30: 100 | G30: 100 | H30: 100
B31: =+'Input Overall Performance Data'!B32:C32 -> Total Fixed Costs | D31: =+Worksheet!C119 -> 36102.77549 | E31: =+Worksheet!D119 -> 19677.10777 | F31: =+Worksheet!E119 -> 34361.33032 | G31: =+Worksheet!F119 -> 31069.34947 | H31: =+Worksheet!G119 -> 8789.436946 | I31: =+Worksheet!H119 -> 130000
B32: =+'Input Overall Performance Data'!B33:C33 -> Operating Surplus/Profit | D32: =+Worksheet!C120 -> 25291.94663 | E32: =+Worksheet!D120 -> 3605.357858 | F32: =+Worksheet!E120 -> 14389.27696 | G32: =+Worksheet!F120 -> 8589.053155 | H32: =+Worksheet!G120 -> 8124.365403 | I32: =+Worksheet!H120 -> 60000
B33: Return on Sales | D33: =+Worksheet!C121 -> 0.1686129775 | E33: =+Worksheet!D121 -> 0.04807143811 | F33: =+Worksheet!E121 -> 0.1151142157 | G33: =+Worksheet!F121 -> 0.07468741874 | H33: =+Worksheet!G121 -> 0.2321247258 | I33: =+Worksheet!H121 -> 0.12
B34: Return on Sales Level | D34: =+Worksheet!C136 -> 1.320154497 | E34: =+Worksheet!D136 -> 0.3763750937 | F34: =+Worksheet!E136 -> 0.9012861983 | G34: =+Worksheet!F136 -> 0.584764786 | H34: =+Worksheet!G136 -> 1.817419425
B35: Profit Contribution | D35: =+Worksheet!C123 -> 0.4215324438 | E35: =+Worksheet!D123 -> 0.06008929764 | F35: =+Worksheet!E123 -> 0.2398212826 | G35: =+Worksheet!F123 -> 0.1431508859 | H35: =+Worksheet!G123 -> 0.1354060901 | I35: =+Worksheet!H123 -> 1
B36: Profit Contribution Level | D36: =+Worksheet!C138 -> 2.107662219 | E36: =+Worksheet!D138 -> 0.3004464882 | F36: =+Worksheet!E138 -> 1.199106413 | G36: =+Worksheet!F138 -> 0.7157544296 | H36: =+Worksheet!G138 -> 0.6770304503
B38: Breakeven Points
B39: =+'Input Overall Performance Data'!B14:C14 -> Revenue | D39: =+Worksheet!C127 -> 88206.54508 | E39: =+Worksheet!D127 -> 63386.03077 | F39: =+Worksheet!E127 -> 88104.87766 | G39: =+Worksheet!F127 -> 90093.77465 | H39: =+Worksheet!G127 -> 18188.12156 | I39: =+Worksheet!H127 -> 342105.2632
B40: Number of Sales | D40: =+Worksheet!C128 -> 2679.126796 | E40: =+Worksheet!D128 -> 365.9486843 | F40: =+Worksheet!E128 -> 156.4742627 | G40: =+Worksheet!F128 -> 1833.995882 | H40: =+Worksheet!G128 -> 352.3298976 | I40: =+Worksheet!H128 -> 5631.052632
B42: Potential & Ability
B43: Potential | D43: 90 | E43: 70 | F43: 85 | G43: 100 | H43: 110
B44: Business Ability | D44: 120 | E44: 80 | F44: 90 | G44: 98 | H44: 123
B45: Opportunity Level | D45: =+Worksheet!C133*100 -> 116.1265349 | E45: =+Worksheet!D133*100 -> 60.21375884 | F45: =+Worksheet!E133*100 -> 82.25629556 | G45: =+Worksheet!F133*100 -> 105.374078 | H45: =+Worksheet!G133*100 -> 145.4807423
B47: ="Summary Output Customer Segment - "&title -> Summary Output Customer Segment - Profit Contribution
B49: =+D9 -> Customer Segment 1 | C49: makes | D49: =+Worksheet!C139 -> a very high | F49: contribution to total profit | H49: =Worksheet!C123 -> 0.4215324438 | I49: , the
B50: comparative Return on Sales is | C50: =+Worksheet!C137 -> high | D50: at | E50: =+Worksheet!C121 -> 0.1686129775 | F50: , and the comparative opportunity level | I50: =+Worksheet!C141 -> high
B51: =+Worksheet!N173 -> Develop this segment for current and future profit.
B53: =+E9 -> Customer Segment 2 | C53: makes | D53: =+Worksheet!D139 -> a very low | F53: contribution to total profit | H53: =+Worksheet!$D123 -> 0.06008929764 | I53: the
B54: comparative Return on Sales is | C54: =+Worksheet!D137 -> very low | D54: at | E54: =+Worksheet!D121 -> 0.04807143811 | F54: , and the comparative opportunity level | I54: =+Worksheet!D141 -> low
B55: =+Worksheet!O173 -> Divest of this segment unless current Return on Sales can be substantially improved, develop another segment for future profit.
B57: =+F9 -> Customer Segment 3 | C57: makes | D57: =+Worksheet!E139 -> a high | F57: contribution to total profit | H57: =Worksheet!$E123 -> 0.2398212826 | I57: the
B58: comparative Return on Sales is | C58: =+Worksheet!E137 -> average | D58: at | E58: =+Worksheet!E121 -> 0.1151142157 | F58: , and the comparative opportunity level | I58: =+Worksheet!E141 -> low
B59: =+Worksheet!P173 -> Review this segment for current profit. Can the Return on Sales be improved? Develop another segment for future profit.
B61: =+G9 -> Customer Segment 4 | C61: makes | D61: =+Worksheet!F139 -> a low | F61: contribution to total profit | H61: =Worksheet!$F123 -> 0.1431508859 | I61: the
B62: comparative Return on Sales is | C62: =+Worksheet!F137 -> low | D62: at | E62: =+Worksheet!F121 -> 0.07468741874 | F62: , and the comparative opportunity level | I62: =+Worksheet!F141 -> average
B63: =+Worksheet!Q173 -> Divest of this segment unless Return on Sales can be substantially improved. Are there better segments for future profit.
B65: =+H9 -> Customer Segment 5 | C65: makes | D65: =+Worksheet!G139 -> a low | F65: contribution to total profit | H65: =Worksheet!$G123 -> 0.1354060901 | I65: the
B66: comparative Return on Sales is | C66: =+Worksheet!G137 -> very high | D66: at | E66: =+Worksheet!G121 -> 0.2321247258 | F66: , and the comparative opportunity level | I66: =+Worksheet!G141 -> high
B67: =+Worksheet!R173 -> Develop this segment for current and future profit.
B69: ="Output Sheets Customer Segment - "&title -> Output Sheets Customer Segment - Profit Contribution
B71: Customer Segment Results
B73: Customer Segment Chart
B75: Combined Assessment Chart
B77: Breakeven Chart
B89: Monetary
B90: Percent
B91: Price
B92: Num Sales
B93: Monetary
B94: Transaction

Sheet Input Product Group Data
B5: ="Input Product Group Data - "&title -> Input Product Group Data - Profit Contribution
B6: Blue cells require input. View comments by positioning your mouse over the red marker cell or click the hyperlink for the
B7: Instruction Sheet
B9: Product Groups | D9: Product Group 1 | E9: Product Group 2 | F9: Product Group 3 | G9: Product Group 4 | H9: Product Group 5 | I9: Total/ Average
B11: =+'Input Overall Performance Data'!B14:C14 -> Revenue | C11: Monetary | D11: 165000 | E11: 70000 | F11: 120000 | G11: 95000 | H11: =I11-SUM(D11:G11) -> 50000 | I11: =IF($C11=$B90,100,'Input Overall Performance Data'!D14) -> 500000
C12: =IF(C11=B89,B90,B89) -> Percent | D12: =IF($C12=$B90,D11/$I11*100,D11/100*$I12) -> 33 | E12: =IF($C12=$B90,E11/$I11*100,E11/100*$I12) -> 14 | F12: =IF($C12=$B90,F11/$I11*100,F11/100*$I12) -> 24 | G12: =IF($C12=$B90,G11/$I11*100,G11/100*$I12) -> 19 | H12: =IF($C12=$B90,H11/$I11*100,H11/100*$I12) -> 10 | I12: =IF($C12=$B89,'Input Overall Performance Data'!D14,100) -> 100
B13: =+'Input Customer Segment Data'!B13 -> Transaction | C13: Price | D13: 30 | E13: 34 | F13: 55 | G13: 65 | H13: 134 | I13: =IF(C13=B91,Worksheet!H185,Worksheet!H183) -> 43.19537063
C14: =IF(C13=B91,B92,B91) -> Num Sales | D14: =+Worksheet!C181/D13 -> 5500 | E14: =+Worksheet!D181/E13 -> 2058.823529 | F14: =+Worksheet!E181/F13 -> 2181.818182 | G14: =+Worksheet!F181/G13 -> 1461.538462 | H14: =+Worksheet!G181/H13 -> 373.1343284 | I14: =+Worksheet!H181/I13 -> 11575.3145
B15: Relative Indicator base | C15: Transaction
B16: =+'Input Overall Performance Data'!B17:C17 -> Variable Costs
B17: =+'Input Overall Performance Data'!B18:C18 -> Materials & Supplies | D17: 70 | E17: 120 | F17: 110 | G17: 68 | H17: 90
B18: =+'Input Overall Performance Data'!B19:C19 -> Labor excluding Owner | D18: 110 | E18: 100 | F18: 123 | G18: 87 | H18: 90
B19: =+'Input Overall Performance Data'!B20:C20 -> Labor Owner | D19: 135 | E19: 100 | F19: 110 | G19: 135 | H19: 70
B20: =+'Input Overall Performance Data'!B21:C21 -> Distribution | D20: 90 | E20: 150 | F20: 100 | G20: 90 | H20: 85
B21: =+'Input Overall Performance Data'!B22:C22 -> Marketing | D21: 50 | E21: 100 | F21: 150 | G21: 110 | H21: 100
B22: =+'Input Overall Performance Data'!B23:C23 -> Other | D22: 0 | E22: 0 | F22: 0 | G22: 0 | H22: 100
B23: =+'Input Overall Performance Data'!B24:C24 -> Total Variable Costs | D23: =+Worksheet!C218 -> 138794.4063 | E23: =+Worksheet!D218 -> 50214.1129 | F23: =+Worksheet!E218 -> 61106.84256 | G23: =+Worksheet!F218 -> 32302.91676 | H23: =+Worksheet!G218 -> 27581.72145 | I23: =+Worksheet!H218 -> 310000
B24: =+'Input Overall Performance Data'!B25:C25 -> Fixed Costs
B25: =+'Input Overall Performance Data'!B26:C26 -> Location | D25: 70 | E25: 70 | F25: 100 | G25: 120 | H25: 135
B26: =+'Input Overall Performance Data'!B27:C27 -> Administration | D26: 50 | E26: 80 | F26: 100 | G26: 130 | H26: 130
B27: =+'Input Overall Performance Data'!B28:C28 -> Labor excluding Owner | D27: 50 | E27: 90 | F27: 100 | G27: 100 | H27: 70
B28: =+'Input Overall Performance Data'!B29:C29 -> Labor Owner | D28: 50 | E28: 100 | F28: 100 | G28: 150 | H28: 170
B29: =+'Input Overall Performance Data'!B30:C30 -> Interest Costs | D29: 0 | E29: 100 | F29: 100 | G29: 140 | H29: 150
B30: =+'Input Overall Performance Data'!B31:C31 -> Other | D30: 0 | E30: 100 | F30: 100 | G30: 150 | H30: 150
B31: =+'Input Overall Performance Data'!B32:C32 -> Total Fixed Costs | D31: =+Worksheet!C251 -> 43993.3469 | E31: =+Worksheet!D251 -> 24423.79701 | F31: =+Worksheet!E251 -> 31316.24425 | G31: =+Worksheet!F251 -> 24391.26066 | H31: =+Worksheet!G251 -> 5875.351187 | I31: =+Worksheet!H251 -> 130000
B32: =+'Input Overall Performance Data'!B33:C33 -> Operating Surplus/Profit | D32: =+Worksheet!C252 -> -17787.75324 | E32: =+Worksheet!D252 -> -4637.909907 | F32: =+Worksheet!E252 -> 27576.91319 | G32: =+Worksheet!F252 -> 38305.82259 | H32: =+Worksheet!G252 -> 16542.92736 | I32: =+Worksheet!H252 -> 60000
B33: =+'Input Customer Segment Data'!B33:C33 -> Return on Sales | D33: =+Worksheet!C253 -> -0.1078045651 | E33: =+Worksheet!D253 -> -0.06625585582 | F33: =+Worksheet!E253 -> 0.2298076099 | G33: =+Worksheet!F253 -> 0.4032191851 | H33: =+Worksheet!G253 -> 0.3308585473 | I33: =+Worksheet!H253 -> 0.12
B34: =+'Input Customer Segment Data'!B34:C34 -> Return on Sales Level | D34: =+Worksheet!C254 -> -0.6824586194 | E34: =+Worksheet!D254 -> -0.4194338138 | F34: =+Worksheet!E254 -> 1.454800955 | G34: =+Worksheet!F254 -> 2.552585859 | H34: =+Worksheet!G254 -> 2.09450562
B35: =+'Input Customer Segment Data'!B35:C35 -> Profit Contribution | D35: =+Worksheet!C255 -> -0.296462554 | E35: =+Worksheet!D255 -> -0.07729849845 | F35: =+Worksheet!E255 -> 0.4596152199 | G35: =+Worksheet!F255 -> 0.6384303765 | H35: =+Worksheet!G255 -> 0.2757154561 | I35: =+Worksheet!H255 -> 1
B36: =+'Input Customer Segment Data'!B36:C36 -> Profit Contribution Level | D36: =+Worksheet!C256 -> -1.48231277 | E36: =+Worksheet!D256 -> -0.3864924923 | F36: =+Worksheet!E256 -> 2.298076099 | G36: =+Worksheet!F256 -> 3.192151882 | H36: =+Worksheet!G256 -> 1.37857728
B38: =+'Input Customer Segment Data'!B38 -> Breakeven Points
B39: =+'Input Customer Segment Data'!B39:C39 -> Revenue | D39: =+Worksheet!C259 -> 276998.1986 | E39: =+Worksheet!D259 -> 86408.34661 | F39: =+Worksheet!E259 -> 63809.60833 | G39: =+Worksheet!F259 -> 36958.1748 | H39: =+Worksheet!G259 -> 13103.93029 | I39: =+Worksheet!H259 -> 342105.2632
B40: =+'Input Customer Segment Data'!B40:C40 -> Number of Sales | D40: =+Worksheet!C260 -> 9233.273288 | E40: =+Worksheet!D260 -> 2541.421959 | F40: =+Worksheet!E260 -> 1160.174697 | G40: =+Worksheet!F260 -> 568.5873047 | H40: =+Worksheet!G260 -> 97.79052455 | I40: =+Worksheet!H260 -> 7919.952027
B42: =+'Input Customer Segment Data'!B42:C42 -> Potential & Ability
B43: =+'Input Customer Segment Data'!B43:C43 -> Potential | D43: 100 | E43: 70 | F43: 120 | G43: 130 | H43: 100
B44: =+'Input Customer Segment Data'!B44:C44 -> Business Ability | D44: 120 | E44: 100 | F44: 90 | G44: 110 | H44: 110
B45: =+'Input Customer Segment Data'!B45:C45 -> Opportunity Level | D45: =+Worksheet!C272*100 -> 108.8534107 | E45: =+Worksheet!D272*100 -> 63.49782293 | F45: =+Worksheet!E272*100 -> 97.96806967 | G45: =+Worksheet!F272*100 -> 129.7169811 | H45: =+Worksheet!G272*100 -> 99.78229318
B47: ="Summary Output Product Group - "&#REF! -> 
B49: =+D9 -> Product Group 1 | C49: makes | D49: =+Worksheet!C271 -> a very low | F49: contribution to total profit | H49: =+Worksheet!C255 -> -0.296462554 | I49: , the
B50: comparative Return on Sales is | C50: =+Worksheet!C269 -> very low | D50: at | E50: =+Worksheet!C253 -> -0.1078045651 | F50: , and the comparative opportunity level | I50: =+Worksheet!C273 -> average
B51: =+Worksheet!N304 -> Divest of this group unless Return on Sales can be substantially improved. Are there better groups for future profit.
B53: =+E9 -> Product Group 2 | C53: makes | D53: =+Worksheet!D271 -> a very low | F53: contribution to total profit | H53: =+Worksheet!D255 -> -0.07729849845 | I53: the
B54: comparative Return on Sales is | C54: =+Worksheet!D269 -> very low | D54: at | E54: =+Worksheet!D253 -> -0.06625585582 | F54: , and the comparative opportunity level | I54: =+Worksheet!D273 -> low
B55: =+Worksheet!O304 -> Divest of this group unless current Return on Sales can be substantially improved, develop another group for future profit.
B57: =+F9 -> Product Group 3 | C57: makes | D57: =+Worksheet!E271 -> a very high | F57: contribution to total profit | H57: =+Worksheet!E255 -> 0.4596152199 | I57: the
B58: comparative Return on Sales is | C58: =+Worksheet!E269 -> high | D58: at | E58: =+Worksheet!E253 -> 0.2298076099 | F58: , and the comparative opportunity level | I58: =+Worksheet!E273 -> average
B59: =+Worksheet!P304 -> Maintain for this group for current profit. Are there better groups for future profits?
B61: =+G9 -> Product Group 4 | C61: makes | D61: =+Worksheet!F271 -> a very high | F61: contribution to total profit | H61: =+Worksheet!F255 -> 0.6384303765 | I61: the
B62: comparative Return on Sales is | C62: =+Worksheet!F269 -> very high | D62: at | E62: =+Worksheet!F253 -> 0.4032191851 | F62: , and the comparative opportunity level | I62: =+Worksheet!F273 -> high
B63: =+Worksheet!Q304 -> Develop this group for current and future profit.
B65: =+H9 -> Product Group 5 | C65: makes | D65: =+Worksheet!G271 -> a high | F65: contribution to total profit | H65: =+Worksheet!G255 -> 0.2757154561 | I65: the
B66: comparative Return on Sales is | C66: =+Worksheet!G269 -> very high | D66: at | E66: =+Worksheet!G253 -> 0.3308585473 | F66: , and the comparative opportunity level | I66: =+Worksheet!G273 -> average
B67: =+Worksheet!R304 -> Maintain for this group for current profit. Are there better groups for future profits?
B69: ="Output Sheets Product Group - "&#REF! -> 
B71: Product Group Results
B73: Product Group Chart
B75: Combined Assessment Chart
B77: Breakeven Chart
B79: =#REF! -> 
B89: Monetary
B90: Percent
B91: Price
B92: Num Sales
B93: Monetary
B94: Transaction

Sheet Customer Segment Results
B2: ="Customer Segment Results - "&title -> Customer Segment Results - Profit Contribution
B3: =+'Input Customer Segment Data'!B9 -> Customer Segments
B4: =Worksheet!B3 -> Acme Widgets
C5: =+Worksheet!C47 -> Customer Segment 1 | D5: =+Worksheet!D47 -> Customer Segment 2 | E5: =+Worksheet!E47 -> Customer Segment 3 | F5: =+Worksheet!F47 -> Customer Segment 4 | G5: =+Worksheet!G47 -> Customer Segment 5 | H5: =+Worksheet!H47 -> Total/ Average
B6: =Worksheet!B5 -> Revenue | C6: =+Worksheet!C49 -> 150000 | D6: =+Worksheet!D49 -> 75000 | E6: =+Worksheet!E49 -> 125000 | F6: =+Worksheet!F49 -> 115000 | G6: =+Worksheet!G49 -> 35000 | H6: =+Worksheet!H49 -> 500000
C7: =+Worksheet!C50 -> 0.3 | D7: =+Worksheet!D50 -> 0.15 | E7: =+Worksheet!E50 -> 0.25 | F7: =+Worksheet!F50 -> 0.23 | G7: =+Worksheet!G50 -> 0.07 | H7: =+Worksheet!H50 -> 1
B8: =Worksheet!B6 -> Expenses
B9: =Worksheet!B7 -> Variable Costs
B10: =Worksheet!B8 -> Materials & Supplies | C10: =+Worksheet!C59 -> 2481.845758 | D10: =+Worksheet!D59 -> 1516.683519 | E10: =+Worksheet!E59 -> 2757.606398 | F10: =+Worksheet!F59 -> 2600.422833 | G10: =+Worksheet!G59 -> 643.4414928 | H10: =+Worksheet!H59 -> 10000
B11: =Worksheet!B9 -> % Revenue | C11: =+Worksheet!C60 -> 0.01654563839 | D11: =+Worksheet!D60 -> 0.02022244692 | E11: =+Worksheet!E60 -> 0.02206085118 | F11: =+Worksheet!F60 -> 0.02261237246 | G11: =+Worksheet!G60 -> 0.01838404265 | H11: =+Worksheet!H60 -> 0.02
B12: =Worksheet!B10 -> Labor excluding Owner | C12: =+Worksheet!C64 -> 52298.97581 | D12: =+Worksheet!D64 -> 39224.23186 | E12: =+Worksheet!E64 -> 48485.50883 | F12: =+Worksheet!F64 -> 49618.6533 | G12: =+Worksheet!G64 -> 10372.6302 | H12: =+Worksheet!H64 -> 200000
B13: =Worksheet!B11 -> % Revenue | C13: =+Worksheet!C65 -> 0.3486598387 | D13: =+Worksheet!D65 -> 0.5229897581 | E13: =+Worksheet!E65 -> 0.3878840706 | F13: =+Worksheet!F65 -> 0.4314665504 | G13: =+Worksheet!G65 -> 0.2963608629 | H13: =+Worksheet!H65 -> 0.4
B14: =Worksheet!B12 -> Labor Owner | C14: =+Worksheet!C69 -> 17167.38197 | D14: =+Worksheet!D69 -> 7868.383405 | E14: =+Worksheet!E69 -> 11921.79304 | F14: =+Worksheet!F69 -> 9871.244635 | G14: =+Worksheet!G69 -> 3171.196948 | H14: =+Worksheet!H69 -> 50000
B15: =Worksheet!B13 -> % Revenue | C15: =+Worksheet!C70 -> 0.1144492132 | D15: =+Worksheet!D70 -> 0.1049117787 | E15: =+Worksheet!E70 -> 0.0953743443 | F15: =+Worksheet!F70 -> 0.08583690987 | G15: =+Worksheet!G70 -> 0.09060562709 | H15: =+Worksheet!H70 -> 0.1
B16: =Worksheet!B14 -> Distribution | C16: =+Worksheet!C74 -> 8161.044614 | D16: =+Worksheet!D74 -> 0 | E16: =+Worksheet!E74 -> 4556.583243 | F16: =+Worksheet!F74 -> 5568.552775 | G16: =+Worksheet!G74 -> 1713.819369 | H16: =+Worksheet!H74 -> 20000
B17: =Worksheet!B15 -> % Revenue | C17: =Worksheet!C75 -> 0.05440696409 | D17: =Worksheet!D75 -> 0 | E17: =Worksheet!E75 -> 0.03645266594 | F17: =Worksheet!F75 -> 0.04842219804 | G17: =Worksheet!G75 -> 0.04896626768 | H17: =Worksheet!H75 -> 0.04
B18: =Worksheet!B16 -> Marketing | C18: =Worksheet!C79 -> 2027.027027 | D18: =Worksheet!D79 -> 941.1196911 | E18: =Worksheet!E79 -> 3137.065637 | F18: =Worksheet!F79 -> 3219.111969 | G18: =Worksheet!G79 -> 675.6756757 | H18: =Worksheet!H79 -> 10000
B19: =Worksheet!B17 -> % Revenue | C19: =Worksheet!C80 -> 0.01351351351 | D19: =Worksheet!D80 -> 0.01254826255 | E19: =Worksheet!E80 -> 0.0250965251 | F19: =Worksheet!F80 -> 0.02799227799 | G19: =Worksheet!G80 -> 0.01930501931 | H19: =Worksheet!H80 -> 0.02
B20: =Worksheet!B18 -> Other | C20: =Worksheet!C84 -> 6469.002695 | D20: =Worksheet!D84 -> 2167.115903 | E20: =Worksheet!E84 -> 5390.83558 | F20: =Worksheet!F84 -> 4463.61186 | G20: =Worksheet!G84 -> 1509.433962 | H20: =Worksheet!H84 -> 20000
B21: =Worksheet!B19 -> % Revenue | C21: =Worksheet!C85 -> 0.04312668464 | D21: =Worksheet!D85 -> 0.02889487871 | E21: =Worksheet!E85 -> 0.04312668464 | F21: =Worksheet!F85 -> 0.03881401617 | G21: =Worksheet!G85 -> 0.04312668464 | H21: =Worksheet!H85 -> 0.04
B22: =Worksheet!B20 -> Total Variable Costs | C22: =+Worksheet!C86 -> 88605.27788 | D22: =+Worksheet!D86 -> 51717.53438 | E22: =+Worksheet!E86 -> 76249.39272 | F22: =+Worksheet!F86 -> 75341.59737 | G22: =+Worksheet!G86 -> 18086.19765 | H22: =+Worksheet!H86 -> 310000
B23: =Worksheet!B21 -> Total Cost of Sales % | C23: =+Worksheet!C87 -> 0.5907018525 | D23: =+Worksheet!D87 -> 0.689567125 | E23: =+Worksheet!E87 -> 0.6099951418 | F23: =+Worksheet!F87 -> 0.655144325 | G23: =+Worksheet!G87 -> 0.5167485043 | H23: =+Worksheet!H87 -> 0.62
B24: =Worksheet!B25 -> Fixed Costs
B25: =Worksheet!B26 -> Location | C25: =+Worksheet!C92 -> 14140.79311 | D25: =+Worksheet!D92 -> 5533.353827 | E25: =+Worksheet!E92 -> 7172.866072 | F25: =+Worksheet!F92 -> 10369.91495 | G25: =+Worksheet!G92 -> 2783.072036 | H25: =+Worksheet!H92 -> 40000
B26: =Worksheet!B27 -> % Revenue | C26: =+Worksheet!C93 -> 0.09427195409 | D26: =+Worksheet!D93 -> 0.07377805103 | E26: =+Worksheet!E93 -> 0.05738292858 | F26: =+Worksheet!F93 -> 0.09017317348 | G26: =+Worksheet!G93 -> 0.07951634389 | H26: =+Worksheet!H93 -> 0.08
B27: =Worksheet!B28 -> Administration | C27: =+Worksheet!C97 -> 7227.208314 | D27: =+Worksheet!D97 -> 5101.55881 | E27: =+Worksheet!E97 -> 9494.567785 | F27: =+Worksheet!F97 -> 6192.725555 | G27: =+Worksheet!G97 -> 1983.939537 | H27: =+Worksheet!H97 -> 30000
B28: =Worksheet!B29 -> % Revenue | C28: =+Worksheet!C98 -> 0.04818138876 | D28: =+Worksheet!D98 -> 0.06802078413 | E28: =+Worksheet!E98 -> 0.07595654228 | F28: =+Worksheet!F98 -> 0.05384978744 | G28: =+Worksheet!G98 -> 0.05668398677 | H28: =+Worksheet!H98 -> 0.06
B29: =Worksheet!B30 -> Labor excluding Owner | C29: =+Worksheet!C102 -> 14734.77407 | D29: =+Worksheet!D102 -> 7367.387033 | E29: =+Worksheet!E102 -> 13506.87623 | F29: =+Worksheet!F102 -> 11296.66012 | G29: =+Worksheet!G102 -> 3094.302554 | H29: =+Worksheet!H102 -> 50000
B30: =Worksheet!B31 -> % Revenue | C30: =+Worksheet!C103 -> 0.09823182711 | D30: =+Worksheet!D103 -> 0.09823182711 | E30: =+Worksheet!E103 -> 0.1080550098 | F30: =+Worksheet!F103 -> 0.09823182711 | G30: =+Worksheet!G103 -> 0.0884086444 | H30: =+Worksheet!H103 -> 0.1
B31: =Worksheet!B32 -> Labor Owner | C31: =+Worksheet!C107 -> 0 | D31: =+Worksheet!D107 -> 1674.808095 | E31: =+Worksheet!E107 -> 4187.020237 | F31: =+Worksheet!F107 -> 3210.048849 | G31: =+Worksheet!G107 -> 928.1228193 | H31: =+Worksheet!H107 -> 10000
B32: =Worksheet!B33 -> % Revenue | C32: =+Worksheet!C108 -> 0 | D32: =+Worksheet!D108 -> 0.0223307746 | E32: =+Worksheet!E108 -> 0.0334961619 | F32: =+Worksheet!F108 -> 0.02791346825 | G32: =+Worksheet!G108 -> 0.02651779484 | H32: =+Worksheet!H108 -> 0.02
B33: =Worksheet!B34 -> Interest Costs | C33: =+Worksheet!C112 -> 0 | D33: =+Worksheet!D112 -> 0 | E33: =+Worksheet!E112 -> 0 | F33: =+Worksheet!F112 -> 0 | G33: =+Worksheet!G112 -> 0 | H33: =+Worksheet!H112 -> 0
B34: =Worksheet!B35 -> % Revenue | C34: =+Worksheet!C113 -> 0 | D34: =+Worksheet!D113 -> 0 | E34: =+Worksheet!E113 -> 0 | F34: =+Worksheet!F113 -> 0 | G34: =+Worksheet!G113 -> 0 | H34: =+Worksheet!H113 -> 0
B35: =Worksheet!B36 -> Other | C35: =+Worksheet!C117 -> 0 | D35: =+Worksheet!D117 -> 0 | E35: =+Worksheet!E117 -> 0 | F35: =+Worksheet!F117 -> 0 | G35: =+Worksheet!G117 -> 0 | H35: =+Worksheet!H117 -> 0
B36: =Worksheet!B37 -> % Revenue | C36: =+Worksheet!C118 -> 0 | D36: =+Worksheet!D118 -> 0 | E36: =+Worksheet!E118 -> 0 | F36: =+Worksheet!F118 -> 0 | G36: =+Worksheet!G118 -> 0 | H36: =+Worksheet!H118 -> 0
B37: =Worksheet!B38 -> Total Fixed Costs | C37: =+Worksheet!C119 -> 36102.77549 | D37: =+Worksheet!D119 -> 19677.10777 | E37: =+Worksheet!E119 -> 34361.33032 | F37: =+Worksheet!F119 -> 31069.34947 | G37: =+Worksheet!G119 -> 8789.436946 | H37: =+Worksheet!H119 -> 130000
B38: =Worksheet!B39 -> Total Overheads % | C38: =+C37/$H37 -> 0.2777136576 | D38: 0.1513623674 | E38: 0.2643179256 | F38: 0.2389949959 | G38: 0.06761105343 | H38: 1
B40: =Worksheet!B43 -> Operating Surplus/Profit | C40: =+Worksheet!C120 -> 25291.94663 | D40: =+Worksheet!D120 -> 3605.357858 | E40: =+Worksheet!E120 -> 14389.27696 | F40: =+Worksheet!F120 -> 8589.053155 | G40: =+Worksheet!G120 -> 8124.365403 | H40: =+Worksheet!H120 -> 60000
B41: =Worksheet!B44 -> Operating Surplus % | C41: =+Worksheet!C121 -> 0.1686129775 | D41: =+Worksheet!D121 -> 0.04807143811 | E41: =+Worksheet!E121 -> 0.1151142157 | F41: =+Worksheet!F121 -> 0.07468741874 | G41: =+Worksheet!G121 -> 0.2321247258 | H41: =+Worksheet!H121 -> 0.12
B42: =+Worksheet!B122 -> Return on Sales Level | C42: =+Worksheet!C122 -> 1.320154497 | D42: =+Worksheet!D122 -> 0.3763750937 | E42: =+Worksheet!E122 -> 0.9012861983 | F42: =+Worksheet!F122 -> 0.584764786 | G42: =+Worksheet!G122 -> 1.817419425
B43: =+Worksheet!B123 -> Profit Contribution | C43: =+Worksheet!C123 -> 0.4215324438 | D43: =+Worksheet!D123 -> 0.06008929764 | E43: =+Worksheet!E123 -> 0.2398212826 | F43: =+Worksheet!F123 -> 0.1431508859 | G43: =+Worksheet!G123 -> 0.1354060901 | H43: =+Worksheet!H123 -> 1
B44: =+Worksheet!B124 -> Profit Contribution Level | C44: =+Worksheet!C124 -> 2.107662219 | D44: =+Worksheet!D124 -> 0.3004464882 | E44: =+Worksheet!E124 -> 1.199106413 | F44: =+Worksheet!F124 -> 0.7157544296 | G44: =+Worksheet!G124 -> 0.6770304503
B46: =+Worksheet!B126 -> Breakeven Points
B47: =+Worksheet!B127 -> Revenue | C47: =+Worksheet!C127 -> 88206.54508 | D47: =+Worksheet!D127 -> 63386.03077 | E47: =+Worksheet!E127 -> 88104.87766 | F47: =+Worksheet!F127 -> 90093.77465 | G47: =+Worksheet!G127 -> 18188.12156 | H47: =+Worksheet!H127 -> 342105.2632
B48: =+Worksheet!B128 -> Number of Sales | C48: =+Worksheet!C128 -> 2679.126796 | D48: =+Worksheet!D128 -> 365.9486843 | E48: =+Worksheet!E128 -> 156.4742627 | F48: =+Worksheet!F128 -> 1833.995882 | G48: =+Worksheet!G128 -> 352.3298976 | H48: =+Worksheet!H128 -> 5631.052632
B50: =+Worksheet!B130 -> Potential & Ability
B51: =+Worksheet!B131 -> Potential | C51: =+Worksheet!C131 -> 90 | D51: =+Worksheet!D131 -> 70 | E51: =+Worksheet!E131 -> 85 | F51: =+Worksheet!F131 -> 100 | G51: =+Worksheet!G131 -> 110
B52: =+Worksheet!B132 -> Business Ability | C52: =+Worksheet!C132 -> 120 | D52: =+Worksheet!D132 -> 80 | E52: =+Worksheet!E132 -> 90 | F52: =+Worksheet!F132 -> 98 | G52: =+Worksheet!G132 -> 123
B53: =+Worksheet!B133 -> Opportunity Level | C53: =+Worksheet!C133 -> 1.161265349 | D53: =+Worksheet!D133 -> 0.6021375884 | E53: =+Worksheet!E133 -> 0.8225629556 | F53: =+Worksheet!F133 -> 1.05374078 | G53: =+Worksheet!G133 -> 1.454807423

Sheet Product Group Results
B2: ="Product Group Results - "&title -> Product Group Results - Profit Contribution
B3: =+Worksheet!B179 -> Product Groups
B4: =Worksheet!B3 -> Acme Widgets
C5: =+Worksheet!C179 -> Product Group 1 | D5: =+Worksheet!D179 -> Product Group 2 | E5: =+Worksheet!E179 -> Product Group 3 | F5: =+Worksheet!F179 -> Product Group 4 | G5: =+Worksheet!G179 -> Product Group 5 | H5: =+Worksheet!H179 -> Total/ Average
B6: =Worksheet!B5 -> Revenue | C6: =+Worksheet!C181 -> 165000 | D6: =+Worksheet!D181 -> 70000 | E6: =+Worksheet!E181 -> 120000 | F6: =+Worksheet!F181 -> 95000 | G6: =+Worksheet!G181 -> 50000 | H6: =+Worksheet!H181 -> 500000
C7: =+Worksheet!C182 -> 0.33 | D7: =+Worksheet!D182 -> 0.14 | E7: =+Worksheet!E182 -> 0.24 | F7: =+Worksheet!F182 -> 0.19 | G7: =+Worksheet!G182 -> 0.1 | H7: =+Worksheet!H182 -> 1
B8: =Worksheet!B6 -> Expenses
B9: =Worksheet!B7 -> Variable Costs
B10: =Worksheet!B8 -> Materials & Supplies | C10: =+Worksheet!C191 -> 3830.748465 | D10: =+Worksheet!D191 -> 2458.234309 | E10: =+Worksheet!E191 -> 2387.999043 | F10: =+Worksheet!F191 -> 988.8765267 | G10: =+Worksheet!G191 -> 334.1416571 | H10: =+Worksheet!H191 -> 10000
B11: =Worksheet!B9 -> % Revenue | C11: =+Worksheet!C192 -> 0.0255383231 | D11: =+Worksheet!D192 -> 0.03277645745 | E11: =+Worksheet!E192 -> 0.01910399234 | F11: =+Worksheet!F192 -> 0.008598926319 | G11: =+Worksheet!G192 -> 0.009546904489 | H11: =+Worksheet!H192 -> 0.02
B12: =Worksheet!B10 -> Labor excluding Owner | C12: =+Worksheet!C196 -> 97582.06758 | D12: =+Worksheet!D196 -> 33207.31517 | E12: =+Worksheet!E196 -> 43285.08843 | F12: =+Worksheet!F196 -> 20508.98381 | G12: =+Worksheet!G196 -> 5416.545012 | H12: =+Worksheet!H196 -> 200000
B13: =Worksheet!B11 -> % Revenue | C13: =+Worksheet!C197 -> 0.6505471172 | D13: =+Worksheet!D197 -> 0.4427642023 | E13: =+Worksheet!E197 -> 0.3462807074 | F13: =+Worksheet!F197 -> 0.1783389897 | G13: =+Worksheet!G197 -> 0.1547584289 | H13: =+Worksheet!H197 -> 0.4
B14: =Worksheet!B12 -> Labor Owner | C14: =+Worksheet!C201 -> 26296.04161 | D14: =+Worksheet!D201 -> 7291.435583 | E14: =+Worksheet!E201 -> 8499.730622 | F14: =+Worksheet!F201 -> 6987.75931 | G14: =+Worksheet!G201 -> 925.0328725 | H14: =+Worksheet!H201 -> 50000
B15: =Worksheet!B13 -> % Revenue | C15: =+Worksheet!C202 -> 0.1753069441 | D15: =+Worksheet!D202 -> 0.0972191411 | E15: =+Worksheet!E202 -> 0.06799784498 | F15: =+Worksheet!F202 -> 0.06076312443 | G15: =+Worksheet!G202 -> 0.02642951064 | H15: =+Worksheet!H202 -> 0.1
B16: =Worksheet!B14 -> Distribution | C16: =+Worksheet!C206 -> 8352.596142 | D16: =+Worksheet!D206 -> 5211.067112 | E16: =+Worksheet!E206 -> 3681.585076 | F16: =+Worksheet!F206 -> 2219.571003 | G16: =+Worksheet!G206 -> 535.1806664 | H16: =+Worksheet!H206 -> 20000
B17: =Worksheet!B15 -> % Revenue | C17: =Worksheet!C207 -> 0.05568397428 | D17: =Worksheet!D207 -> 0.06948089483 | E17: =Worksheet!E207 -> 0.02945268061 | F17: =Worksheet!F207 -> 0.01930061742 | G17: =Worksheet!G207 -> 0.01529087618 | H17: =Worksheet!H207 -> 0.04
B18: =Worksheet!B16 -> Marketing | C18: =Worksheet!C211 -> 2732.952542 | D18: =Worksheet!D211 -> 2046.060727 | E18: =Worksheet!E211 -> 3252.439389 | F18: =Worksheet!F211 -> 1597.726102 | G18: =Worksheet!G211 -> 370.8212405 | H18: =Worksheet!H211 -> 10000
B19: =Worksheet!B17 -> % Revenue | C19: =Worksheet!C212 -> 0.01821968361 | D19: =Worksheet!D212 -> 0.02728080969 | E19: =Worksheet!E212 -> 0.02601951511 | F19: =Worksheet!F212 -> 0.01389327045 | G19: =Worksheet!G212 -> 0.01059489258 | H19: =Worksheet!H212 -> 0.02
B20: =Worksheet!B18 -> Other | C20: =Worksheet!C216 -> 0 | D20: =Worksheet!D216 -> 0 | E20: =Worksheet!E216 -> 0 | F20: =Worksheet!F216 -> 0 | G20: =Worksheet!G216 -> 20000 | H20: =Worksheet!H216 -> 20000
B21: =Worksheet!B19 -> % Revenue | C21: =Worksheet!C217 -> 0 | D21: =Worksheet!D217 -> 0 | E21: =Worksheet!E217 -> 0 | F21: =Worksheet!F217 -> 0 | G21: =Worksheet!G217 -> 0.5714285714 | H21: =Worksheet!H217 -> 0.04
B22: =Worksheet!B20 -> Total Variable Costs | C22: =+Worksheet!C218 -> 138794.4063 | D22: =+Worksheet!D218 -> 50214.1129 | E22: =+Worksheet!E218 -> 61106.84256 | F22: =+Worksheet!F218 -> 32302.91676 | G22: =+Worksheet!G218 -> 27581.72145 | H22: =+Worksheet!H218 -> 310000
B23: =Worksheet!B21 -> Total Cost of Sales % | C23: =+Worksheet!C219 -> 0.8411782202 | D23: =+Worksheet!D219 -> 0.71734447 | E23: =+Worksheet!E219 -> 0.509223688 | F23: =+Worksheet!F219 -> 0.3400307027 | G23: =+Worksheet!G219 -> 0.551634429 | H23: =+Worksheet!H219 -> 0.62
B24: =Worksheet!B25 -> Fixed Costs
B25: =Worksheet!B26 -> Location | C25: =+Worksheet!C224 -> 15826.4075 | D25: =+Worksheet!D224 -> 5924.323661 | E25: =+Worksheet!E224 -> 8968.920422 | F25: =+Worksheet!F224 -> 7209.632186 | G25: =+Worksheet!G224 -> 2070.716236 | H25: =+Worksheet!H224 -> 40000
B26: =Worksheet!B27 -> % Revenue | C26: =+Worksheet!C225 -> 0.1055093833 | D26: =+Worksheet!D225 -> 0.07899098215 | E26: =+Worksheet!E225 -> 0.07175136338 | F26: =+Worksheet!F225 -> 0.06269245379 | G26: =+Worksheet!G225 -> 0.05916332102 | H26: =+Worksheet!H225 -> 0.08
B27: =Worksheet!B28 -> Administration | C27: =+Worksheet!C229 -> 9203.530249 | D27: =+Worksheet!D229 -> 5512.274802 | E27: =+Worksheet!E229 -> 7301.974413 | F27: =+Worksheet!F229 -> 6358.802718 | G27: =+Worksheet!G229 -> 1623.417819 | H27: =+Worksheet!H229 -> 30000
B28: =Worksheet!B29 -> % Revenue | C28: =+Worksheet!C230 -> 0.06135686833 | D28: =+Worksheet!D230 -> 0.07349699736 | E28: =+Worksheet!E230 -> 0.0584157953 | F28: =+Worksheet!F230 -> 0.05529393668 | G28: =+Worksheet!G230 -> 0.04638336625 | H28: =+Worksheet!H230 -> 0.06
B29: =Worksheet!B30 -> Labor excluding Owner | C29: =+Worksheet!C234 -> 16162.2253 | D29: =+Worksheet!D234 -> 10890.05555 | E29: =+Worksheet!E234 -> 12822.92255 | F29: =+Worksheet!F234 -> 8589.714145 | G29: =+Worksheet!G234 -> 1535.082457 | H29: =+Worksheet!H234 -> 50000
B30: =Worksheet!B31 -> % Revenue | C30: =+Worksheet!C235 -> 0.1077481687 | D30: =+Worksheet!D235 -> 0.1452007406 | E30: =+Worksheet!E235 -> 0.1025833804 | F30: =+Worksheet!F235 -> 0.07469316648 | G30: =+Worksheet!G235 -> 0.04385949877 | H30: =+Worksheet!H235 -> 0.1
B31: =Worksheet!B32 -> Labor Owner | C31: =+Worksheet!C239 -> 2801.183858 | D31: =+Worksheet!D239 -> 2097.142996 | E31: =+Worksheet!E239 -> 2222.426863 | F31: =+Worksheet!F239 -> 2233.111607 | G31: =+Worksheet!G239 -> 646.1346756 | H31: =+Worksheet!H239 -> 10000
B32: =Worksheet!B33 -> % Revenue | C32: =+Worksheet!C240 -> 0.01867455906 | D32: =+Worksheet!D240 -> 0.02796190661 | E32: =+Worksheet!E240 -> 0.0177794149 | F32: =+Worksheet!F240 -> 0.0194183618 | G32: =+Worksheet!G240 -> 0.01846099073 | H32: =+Worksheet!H240 -> 0.02
B33: =Worksheet!B34 -> Interest Costs | C33: =+Worksheet!C244 -> 0 | D33: =+Worksheet!D244 -> 0 | E33: =+Worksheet!E244 -> 0 | F33: =+Worksheet!F244 -> 0 | G33: =+Worksheet!G244 -> 0 | H33: =+Worksheet!H244 -> 0
B34: =Worksheet!B35 -> % Revenue | C34: =+Worksheet!C245 -> 0 | D34: =+Worksheet!D245 -> 0 | E34: =+Worksheet!E245 -> 0 | F34: =+Worksheet!F245 -> 0 | G34: =+Worksheet!G245 -> 0 | H34: =+Worksheet!H245 -> 0
B35: =Worksheet!B36 -> Other | C35: =+Worksheet!C249 -> 0 | D35: =+Worksheet!D249 -> 0 | E35: =+Worksheet!E249 -> 0 | F35: =+Worksheet!F249 -> 0 | G35: =+Worksheet!G249 -> 0 | H35: =+Worksheet!H249 -> 0
B36: =Worksheet!B37 -> % Revenue | C36: =+Worksheet!C250 -> 0 | D36: =+Worksheet!D250 -> 0 | E36: =+Worksheet!E250 -> 0 | F36: =+Worksheet!F250 -> 0 | G36: =+Worksheet!G250 -> 0 | H36: =+Worksheet!H250 -> 0
B37: =Worksheet!B38 -> Total Fixed Costs | C37: =+Worksheet!C251 -> 43993.3469 | D37: =+Worksheet!D251 -> 24423.79701 | E37: =+Worksheet!E251 -> 31316.24425 | F37: =+Worksheet!F251 -> 24391.26066 | G37: =+Worksheet!G251 -> 5875.351187 | H37: =+Worksheet!H251 -> 130000
B38: =Worksheet!B39 -> Total Overheads % | C38: =+C37/$H37 -> 0.3384103608 | D38: 0.1878753616 | E38: 0.2408941865 | F38: 0.187625082 | G38: 0.04519500913 | H38: 1
B40: =Worksheet!B43 -> Operating Surplus/Profit | C40: =+Worksheet!C252 -> -17787.75324 | D40: =+Worksheet!D252 -> -4637.909907 | E40: =+Worksheet!E252 -> 27576.91319 | F40: =+Worksheet!F252 -> 38305.82259 | G40: =+Worksheet!G252 -> 16542.92736 | H40: =+Worksheet!H252 -> 60000
B41: =Worksheet!B44 -> Operating Surplus % | C41: =+Worksheet!C253 -> -0.1078045651 | D41: =+Worksheet!D253 -> -0.06625585582 | E41: =+Worksheet!E253 -> 0.2298076099 | F41: =+Worksheet!F253 -> 0.4032191851 | G41: =+Worksheet!G253 -> 0.3308585473 | H41: =+Worksheet!H253 -> 0.12
B42: =+Worksheet!B122 -> Return on Sales Level | C42: =+Worksheet!C254 -> -0.6824586194 | D42: =+Worksheet!D254 -> -0.4194338138 | E42: =+Worksheet!E254 -> 1.454800955 | F42: =+Worksheet!F254 -> 2.552585859 | G42: =+Worksheet!G254 -> 2.09450562 | H42: =+Worksheet!H254 -> 0
B43: =+Worksheet!B123 -> Profit Contribution | C43: =+Worksheet!C255 -> -0.296462554 | D43: =+Worksheet!D255 -> -0.07729849845 | E43: =+Worksheet!E255 -> 0.4596152199 | F43: =+Worksheet!F255 -> 0.6384303765 | G43: =+Worksheet!G255 -> 0.2757154561 | H43: =+Worksheet!H255 -> 1
B44: =+Worksheet!B124 -> Profit Contribution Level | C44: =+Worksheet!C256 -> -1.48231277 | D44: =+Worksheet!D256 -> -0.3864924923 | E44: =+Worksheet!E256 -> 2.298076099 | F44: =+Worksheet!F256 -> 3.192151882 | G44: =+Worksheet!G256 -> 1.37857728 | H44: =+Worksheet!H256 -> 0
B46: =+Worksheet!B126 -> Breakeven Points
B47: =+Worksheet!B127 -> Revenue | C47: =+Worksheet!C259 -> 276998.1986 | D47: =+Worksheet!D259 -> 86408.34661 | E47: =+Worksheet!E259 -> 63809.60833 | F47: =+Worksheet!F259 -> 36958.1748 | G47: =+Worksheet!G259 -> 13103.93029 | H47: =+Worksheet!H259 -> 342105.2632
B48: =+Worksheet!B128 -> Number of Sales | C48: =+Worksheet!C260 -> 9233.273288 | D48: =+Worksheet!D260 -> 2541.421959 | E48: =+Worksheet!E260 -> 1160.174697 | F48: =+Worksheet!F260 -> 568.5873047 | G48: =+Worksheet!G260 -> 97.79052455 | H48: =+Worksheet!H260 -> 7919.952027
B50: =+Worksheet!B130 -> Potential & Ability
B51: =+Worksheet!B131 -> Potential | C51: =+Worksheet!C263 -> 100 | D51: =+Worksheet!D263 -> 70 | E51: =+Worksheet!E263 -> 120 | F51: =+Worksheet!F263 -> 130 | G51: =+Worksheet!G263 -> 100
B52: =+Worksheet!B132 -> Business Ability | C52: =+Worksheet!C264 -> 120 | D52: =+Worksheet!D264 -> 100 | E52: =+Worksheet!E264 -> 90 | F52: =+Worksheet!F264 -> 110 | G52: =+Worksheet!G264 -> 110
B53: =+Worksheet!B133 -> Opportunity Level | C53: =+Worksheet!C265 -> 1.088534107 | D53: =+Worksheet!D265 -> 0.6349782293 | E53: =+Worksheet!E265 -> 0.9796806967 | F53: =+Worksheet!F265 -> 1.297169811 | G53: =+Worksheet!G265 -> 0.9978229318

Sheet Instructions
B2: ="Instructions - "&title -> Instructions - Profit Contribution
B3: Overview
B4: Outline | D4: Profit Contribution Breakdown allows you to identify the level of surplus/profit generated by components of your business. Default breakdown is five Customer Segments and five Product Groups. Overall variable and fixed expenses are allocated to components by applying relative indicators. This effectively allocates expenses to component areas based on the amount of expense (resource) they demand. Indicators for future potential and business ability are combined with component performance data to identify areas offering the greatest opportunity for development. Summary recommendations are provided for each breakdown and results presented in graphical and tabular form. This business tool can analyze any chosen component of an overall business or product line.
B8: Input
B9: All inputs are in Blue cells on the Input Sheets. Click the tab, hyperlinks or buttons to access.
B10: =+'Input Overall Performance Data'!B9 -> Overall Performance Data | D10: This section reviews the overall performance of your business for a full year period. You can include up to 6 categories for expenses that vary with your sales (Variable Costs) and another 6 categories for expenses that don't vary with your sales (Fixed Costs). Input your descriptions and values in the blue cells. Example categories are provided. Your input can be based on a recent tax return or Profit and Loss statement. If you exclude asset and capital items the result will represent your day to day operating surplus/profit. Inputs do not have to be perfect but should reasonably reflect business operation. Analysis will determine the contribution made by customer segments and product groups to overall performance. This allows you to identify the most profitable components of your business and direct resources to maximize your current and future returns. If you wish to analyze a specific area of your business i.e. a product line, use data for that specific area as input for overall performance.
B11: =+'Input Overall Performance Data'!B11 -> Business Name or Identifier | D11: Input a name for the overall business. This appears as an identifier on the Output Sheets.
B12: =+'Input Overall Performance Data'!B14 -> Revenue | D12: If desired input a descriptive name for your revenue. Input the value of overall revenue for a full year.
B13: Expenses | D13: Select your Expense input as Monetary or Percent. This allows you to input your Expenses directly in Monetary (Dollars, Pounds etc) or Percentage terms.
B14: =+'Input Overall Performance Data'!B17 -> Variable Costs | D14: Variable Costs change with the volume of product or service you provide. Only include these costs in this section. You can input a descriptive name for these costs and define up to six categories for cost allocation.
B15: =+'Input Overall Performance Data'!B25:C25 -> Fixed Costs | D15: Fixed Costs are expenses which remain constant (up to a point) while the volume of sales vary. You can input a descriptive name for these costs and define up to six categories for cost allocation.
B16: =+'Input Overall Performance Data'!B37:C37 -> Input Customer Segment Data | D16: You can break overall performance into any base components you desire. The default breakdown is five Customer Segments and five Product Groups. If desired input a descriptive name for the breakdown you will apply and each of your five segments. Customer Segments can be defined based on customer location, type, age, buying habits, number or value of sales, interests, or any attribute you choose. The sum of segment values in each category will equal overall values.
B17: =+'Input Customer Segment Data'!B11 -> Revenue | D17: Select your revenue input as Monetary or Percent. This allows you to input your revenue directly in Monetary (Dollars, Pounds etc) or Percentage terms. Input the revenue for each of your first four segments. Revenue for the fifth segment is calculated to make total revenue equal to overall revenue.
B18: =+'Input Customer Segment Data'!B13 -> Transaction | D18: Select your transaction input as Num Sales (Number of Sales) or Price (Average Revenue per Sale). This allows you to provide transaction input based on the number of sales within each segment or the average revenue (price) per transaction for each segment. Input the value for each of your five segments.
B19: =+'Input Customer Segment Data'!B15 -> Relative Indicator reference | D19: Select your Relative Indicator reference as Monetary or Transaction. This allows you to input your Relative Indicators referenced per unit of revenue in Monetary (Dollars, Pounds etc) or referenced per unit number of Transactions.
D20: Each expense category provides a resource. This resource is used to secure sales transactions and revenue with the goal of generating a profit. The amount of resource required to secure a set number of transactions or a set amount of revenue varies by segment. Segments that consume more of a resource should contribute more to the expense that provided the resource. Expense allocations are determined using Relative Indicators. Relative Indicators can be referenced to Transactions or Monetary (Dollars, Pounds, etc). The base or "average" relative indicator is 100. This is the level of expense incurred overall business to secure a set number of transactions (if your reference is Transaction) or a set amount of revenue (if your reference is Monetary). If a segment uses 10% more of the expense than "average" to secure the transaction or revenue its relative indicator is 110. If 10% less its relative indicator is 90. If it uses none of the expense its relative indicator is 0. All calculations are relative, it does not matter what the relative indicator totals are only the relationship between each indicator is used.
B21: =+'Input Customer Segment Data'!B16:C16 -> Variable Costs | D21: Input the Relative Indicator for each expense category to generate a set amount of revenue, or number of transactions for each of your five segments. The base or "average" indicator is 100.
B22: =+'Input Customer Segment Data'!B24:C24 -> Fixed Costs | D22: Input the Relative Indicator for each expense category to generate a set amount of revenue, or number of transactions for each of your five segments. The base or "average" indicator is 100.
B23: =+'Input Customer Segment Data'!B32:C32 -> Operating Surplus/Profit | D23: The Operating Surplus/Profit indicates the profit for each segment.
B24: =+'Input Customer Segment Data'!B33:C33 -> Return on Sales | D24: If desired input a descriptive name for the Operating Surplus/Profit as a percentage of sales revenue. This indicates how much of each segment revenue flows through to profit.
B25: =+'Input Customer Segment Data'!B34:C34 -> Return on Sales Level | D25: If desired input a descriptive name for your Return on Sales Level. This is the strength of profit flow through for each segment compared to each of the other segments. It is used as an indicator of comparative performance. The highest indicator signifies the highest profit flow through. This is also presented in the Combined Assessment Chart.
B26: =+'Input Customer Segment Data'!B35:C35 -> Profit Contribution | D26: If desired input a descriptive name for the Profit Contribution from each segment. This the percentage contribution each segment makes to overall operating surplus/profit.
B27: =+'Input Customer Segment Data'!B36:C36 -> Profit Contribution Level | D27: If desired input a descriptive name for the Profit Contribution Level. This is the profit contribution of each segment compared to each of the other segments. It is used as an indicator of comparative performance. The highest indicator signifies the highest profit contribution. This is also presented in the Combined Assessment Chart.
B28: =+'Input Customer Segment Data'!B38:C38 -> Breakeven Points | D28: Breakeven Points are the point where the income from a segment equals the expenses for that segment. Above the breakeven point you make a profit, below it you make a loss.
B29: =+'Input Customer Segment Data'!B39:C39 -> Revenue | D29: This is the annual revenue required by each segment for it to breakeven. If annual revenue is below this point the segment is making a loss. The Breakeven Chart provides additional breakeven data. To view each segment you must access the chart from the buttons at the bottom of the Segment Input sheet.
B30: =+'Input Customer Segment Data'!B40:C40 -> Number of Sales | D30: If desired input a descriptive name for the breakeven number of sales. This is the annual number of sales required by each segment for it to breakeven. If the annual number of sales is below this point the segment is making a loss. The Breakeven Chart provides additional breakeven data. To view each segment you must access the chart from the buttons at the bottom of the Segment Input sheet.
B31: =+'Input Customer Segment Data'!B42:C42 -> Potential & Ability | D31: This section establishes the relationship between segment potential and the ability of your business to service it. A Relative Indicator is applied to each segment for these attributes. The base or "average" relative indicator is 100. If segment potential is 10% greater than average its relative indicator is 110. If 10% less its relative indicator is 90. All calculations are relative, it does not matter what the relative indicator totals are only the relationship between each indicator is used.
B32: =+'Input Customer Segment Data'!B43:C43 -> Potential | D32: If desired input a descriptive name for Segment Potential. This is one component of the Opportunity Level. Input a relative indicator to represent the potential in each segment. Consider size, growth, profitability, customer satisfaction, competition levels, and risk. The base or "average" relative indicator is 100.
B33: =+'Input Customer Segment Data'!B44:C44 -> Business Ability | D33: If desired input a descriptive name for Business Ability. This is one component of the Opportunity Level. Input a relative indicator to represent your businesses ability to service and develop each segment. Consider your expertise, market share, distribution, marketing, and resources. The base or "average" relative indicator is 100.
B34: =+'Input Customer Segment Data'!B45:C45 -> Opportunity Level | D34: If desired input a descriptive name for the Opportunity level. This indicates the attractiveness of a segment for your business. It considers the segment potential and your businesses ability to develop that potential. The highest opportunity level indicates the relatively most attractive segment for your business. This is also presented in the Combined Assessment Chart.
B35: =+'Input Customer Segment Data'!B71:C71 -> Customer Segment Results | D35: Detailed breakdown by expense categories for each segment.
B36: =+'Input Customer Segment Data'!B73:C73 -> Customer Segment Chart | D36: Revenue and Surplus Chart by Segment.
B37: =+'Input Customer Segment Data'!B75:C75 -> Combined Assessment Chart | D37: This chart plots the Opportunity Level against Return on Sales Level and shows the current Profit Contribution level for each segment and group. It allows you to easily identify areas for increased focus. The closer to the top the higher the comparative return on sales. The further to the right, the greater the comparative opportunity. Customer segments and product groups towards the top right hand side represent the best opportunities for development. The greatest opportunity may exist where a high rating product group is purchased by a high rating customer segment. This chart indicates where effort and resources should be directed for greatest return. The current profit contribution is indicated by the size of the marker. If the contribution is negative (the segment or group makes a loss) no marker will be seen.
B38: =+'Input Customer Segment Data'!B77:C77 -> Breakeven Chart | D38: View the Breakeven Chart by clicking the required button. To update chart data you must access it using the buttons.
B39: =+'Input Overall Performance Data'!B39:C39 -> Input Product Group Data | D39: You can break overall performance into any base components you desire. The default breakdown is five Customer Segments and five Product Groups. If desired input a descriptive name for the breakdown you will apply on this sheet and each of your five groups. Product Groups can be based on product type, cost, number or value of sales, use, or any attribute you choose. The sum of group values in each category will equal overall values.
B40: =+'Input Product Group Data'!B11 -> Revenue | D40: Select your revenue input as Monetary or Percent. This allows you to input your revenue directly in Monetary (Dollars, Pounds etc) or Percentage terms. Input the revenue for each of your first four groups. Revenue for the fifth group is calculated to make total revenue equal to overall revenue.
B41: =+'Input Product Group Data'!B13 -> Transaction | D41: Select your transaction input as Num Sales (Number of Sales) or Price (Average Revenue per Sale). This allows you to provide transaction input based on the number of sales within each group or the average revenue (price) per transaction for each group. Input the value for each of your five groups.
B42: =+'Input Product Group Data'!B15 -> Relative Indicator base | D42: Select your Relative Indicator reference as Monetary or Transaction. This allows you to input your Relative Indicators referenced per unit of revenue in Monetary (Dollars, Pounds etc) or referenced per unit number of Transactions.
D43: Each expense category provides a resource. This resource is used to secure sales transactions and revenue with the goal of generating a profit. The amount of resource required to secure a set number of transactions or a set amount of revenue varies by group. Groups that consume more of a resource should contribute more to the expense that provided the resource. Expense allocations are determined using Relative Indicators. Relative Indicators can be referenced to Transactions or Monetary (Dollars, Pounds, etc). The base or "average" relative indicator is 100. This is the level of expense incurred overall to secure a set number of transactions (if your reference is Transaction) or a set amount of revenue (if your reference is Monetary). If a segment uses 10% more of the expense than "average" to secure the transaction or revenue its relative indicator is 110. If 10% less its relative indicator is 90. If it uses none of a the expense its relative indicator is 0. All calculations are relative, it does not matter what the relative indicator totals are only the relationship between each indicator is used.
B44: =+'Input Product Group Data'!B16:C16 -> Variable Costs | D44: Input the Relative Indicator for each expense category to generate a set amount of revenue, or number of transactions for each of your five groups. The base or "average" indicator is 100.
B45: =+'Input Product Group Data'!B24:C24 -> Fixed Costs | D45: Input the Relative Indicator for each expense category to generate a set amount of revenue, or number of transactions for each of your five groups. The base or "average" indicator is 100.
B46: =+'Input Product Group Data'!B32:C32 -> Operating Surplus/Profit | D46: The Operating Surplus/Profit indicates the profit for each group.
B47: =+'Input Product Group Data'!B33:C33 -> Return on Sales | D47: This indicates the how much of each group revenue flows through to profit.
B48: =+'Input Product Group Data'!B34:C34 -> Return on Sales Level | D48: This is the strength of profit flow through for each group compared to each of the other groups. It is used as an indicator of comparative performance. The highest indicator signifies the highest profit flow through. This is also presented in the Combined Assessment Chart.
B49: =+'Input Product Group Data'!B35:C35 -> Profit Contribution | D49: This the percentage contribution each group makes to overall operating surplus/profit.
B50: =+'Input Product Group Data'!B36:C36 -> Profit Contribution Level | D50: This is the profit contribution of each group compared to each of the other groups. It is used as an indicator of comparative performance. The highest indicator signifies the highest profit contribution. This is also presented in the Combined Assessment Chart.
B51: =+'Input Product Group Data'!B38:C38 -> Breakeven Points | D51: Breakeven Points are the point where the income from a group equals the expenses for that group. Above the breakeven point you make a profit, below it you make a loss.
B52: =+'Input Product Group Data'!B39:C39 -> Revenue | D52: This is the annual revenue required by each group for it to breakeven. If annual revenue is below this point the group is making a loss. The Breakeven Chart provides additional breakeven data. To view each group you must access the chart from the buttons at the bottom of the sheet.
B53: =+'Input Product Group Data'!B40:C40 -> Number of Sales | D53: If desired input a descriptive name for the breakeven number of sales. This is the annual number of sales required by each group for it to breakeven. If the annual number of sales is below this point the group is making a loss. The Breakeven Chart provides additional breakeven data. To view each group you must access the chart from the buttons at the bottom of this page.
B54: =+'Input Product Group Data'!B42:C42 -> Potential & Ability | D54: This section establishes the relationship between group potential and the ability of your business to service it. A Relative Indicator is applied to each group for these attributes. The base or "average" relative indicator is 100. If group potential is 10% greater than average its relative indicator is 110. If 10% less its relative indicator is 90. All calculations are relative, it does not matter what the relative indicator totals are only the relationship between each indicator is used.
B55: =+'Input Product Group Data'!B43:C43 -> Potential | D55: This is one component of the relative opportunity level. Input a relative indicator to represent the potential in each group. Consider demand, growth, profitability, customer satisfaction, competition levels, and risk. The base or "average" relative indicator is 100. If group potential is 10% greater than average its relative indicator is 110. If 10% less its relative indicator is 90. All calculations are relative, it does not matter what the relative indicator totals are only the relationship between each indicator is used. This is one component of the relative opportunity level.
B56: =+'Input Product Group Data'!B44:C44 -> Business Ability | D56: This is one component of the Opportunity Level. Input a relative indicator to represent your businesses ability to service and develop each group. Consider your expertise, market share, distribution, marketing, and resources. The base or "average" relative indicator is 100.
B57: =+'Input Product Group Data'!B45:C45 -> Opportunity Level | D57: This indicates the attractiveness of a group for your business. It considers the group potential and your businesses ability to develop that potential. The highest opportunity level indicates the relatively most attractive group for your business. This is also presented in the Combined Assessment Chart.
B58: =+'Input Product Group Data'!B71:C71 -> Product Group Results | D58: Detailed breakdown by expense categories for each group.
B59: =+'Input Product Group Data'!B73:C73 -> Product Group Chart | D59: Revenue and Surplus Chart by Group.
B60: =+'Input Product Group Data'!B75:C75 -> Combined Assessment Chart | D60: This chart plots the Opportunity Level against Return on Sales Level and shows the current Profit Contribution level for each segment and group. It allows you to easily identify areas for increased focus. The closer to the top the higher the comparative return on sales. The further to the right, the greater the comparative opportunity. Customer segments and product groups towards the top right hand side represent the best opportunities for development. The greatest opportunity may exist where a high rating product group is purchased by a high rating customer segment. This chart indicates where effort and resources should be directed for greatest return. The current profit contribution is indicated by the size of the marker. If the contribution is negative (the segment or group makes a loss) no marker will be seen.
B61: =+'Input Product Group Data'!B77:C77 -> Breakeven Chart | D61: View the Breakeven Chart by clicking the required button. To update chart data you must access it using the buttons.

Sheet Worksheet (hidden)
B2: Current Performance
B3: =+'Input Overall Performance Data'!D11 -> Acme Widgets
C4: Current
B5: =+'Input Overall Performance Data'!B14 -> Revenue | C5: =+'Input Overall Performance Data'!D14 -> 500000
B6: =+'Input Overall Performance Data'!B16 -> Expenses
B7: =+'Input Overall Performance Data'!B17 -> Variable Costs
B8: =+'Input Overall Performance Data'!B18 -> Materials & Supplies | C8: =IF('Input Overall Performance Data'!D$16='Input Overall Performance Data'!B$51,'Input Overall Performance Data'!D$18,'Input Overall Performance Data'!E$18) -> 10000
B9: % Revenue | C9: =+C8/C$5 -> 0.02
B10: =+'Input Overall Performance Data'!B19 -> Labor excluding Owner | C10: =IF('Input Overall Performance Data'!D$16='Input Overall Performance Data'!B$51,'Input Overall Performance Data'!D$19,'Input Overall Performance Data'!E$19) -> 200000
B11: % Revenue | C11: =+C10/C$5 -> 0.4
B12: =+'Input Overall Performance Data'!B20 -> Labor Owner | C12: =IF('Input Overall Performance Data'!D$16='Input Overall Performance Data'!B$51,'Input Overall Performance Data'!D$20,'Input Overall Performance Data'!E$20) -> 50000
B13: % Revenue | C13: =+C12/C$5 -> 0.1
B14: =+'Input Overall Performance Data'!B21 -> Distribution | C14: =IF('Input Overall Performance Data'!D$16='Input Overall Performance Data'!B$51,'Input Overall Performance Data'!D$21,'Input Overall Performance Data'!E$21) -> 20000
B15: % Revenue | C15: =+C14/C$5 -> 0.04
B16: =+'Input Overall Performance Data'!B22 -> Marketing | C16: =IF('Input Overall Performance Data'!D$16='Input Overall Performance Data'!B$51,'Input Overall Performance Data'!D$22,'Input Overall Performance Data'!E$22) -> 10000
B17: % Revenue | C17: =+C16/C$5 -> 0.02
B18: =+'Input Overall Performance Data'!B23 -> Other | C18: =IF('Input Overall Performance Data'!D$16='Input Overall Performance Data'!B$51,'Input Overall Performance Data'!D$23,'Input Overall Performance Data'!E$23) -> 20000
B19: % Revenue | C19: =+C18/C$5 -> 0.04
B20: =+'Input Overall Performance Data'!B24 -> Total Variable Costs | C20: =+C8+C10+C12+C14+C16+C18 -> 310000
B21: Total Cost of Sales % | C21: =IF(C20=0,0,+C20/C$5) -> 0.62
B22: Gross Profit | C22: =+C5-C20 -> 190000
B23: Gross Profit % | C23: =IF(C22=0,0,+C22/C$5) -> 0.38
B24: Mark-up Equivalent | C24: =IF(C5=0,0,+C5/C20-1) -> 0.6129032258
B25: =+'Input Overall Performance Data'!B25 -> Fixed Costs
B26: =+'Input Overall Performance Data'!B26 -> Location | C26: =IF('Input Overall Performance Data'!D$16='Input Overall Performance Data'!B$51,'Input Overall Performance Data'!D$26,'Input Overall Performance Data'!E$26) -> 40000
B27: % Revenue | C27: =+C26/C$5 -> 0.08
B28: =+'Input Overall Performance Data'!B27 -> Administration | C28: =IF('Input Overall Performance Data'!D$16='Input Overall Performance Data'!B$51,'Input Overall Performance Data'!D$27,'Input Overall Performance Data'!E$27) -> 30000
B29: % Revenue | C29: =+C28/C$5 -> 0.06
B30: =+'Input Overall Performance Data'!B28 -> Labor excluding Owner | C30: =IF('Input Overall Performance Data'!D$16='Input Overall Performance Data'!B$51,'Input Overall Performance Data'!D$28,'Input Overall Performance Data'!E$28) -> 50000
B31: % Revenue | C31: =+C30/C$5 -> 0.1
B32: =+'Input Overall Performance Data'!B29 -> Labor Owner | C32: =IF('Input Overall Performance Data'!D$16='Input Overall Performance Data'!B$51,'Input Overall Performance Data'!D$29,'Input Overall Performance Data'!E$29) -> 10000
B33: % Revenue | C33: =+C32/C$5 -> 0.02
B34: =+'Input Overall Performance Data'!B30 -> Interest Costs | C34: =IF('Input Overall Performance Data'!D$16='Input Overall Performance Data'!B$51,'Input Overall Performance Data'!D$30,'Input Overall Performance Data'!E$30) -> 0
B35: % Revenue | C35: =+C34/C$5 -> 0
B36: =+'Input Overall Performance Data'!B31 -> Other | C36: =IF('Input Overall Performance Data'!D$16='Input Overall Performance Data'!B$51,'Input Overall Performance Data'!D$31,'Input Overall Performance Data'!E$31) -> 0
B37: % Revenue | C37: =+C36/C$5 -> 0
B38: =+'Input Overall Performance Data'!B32 -> Total Fixed Costs | C38: =+C26+C28+C30+C32+C36+C34 -> 130000
B39: Total Overheads % | C39: =IF(C38=0,0,+C38/C$5) -> 0.26
B41: Total Expenses | C41: =+C20+C38 -> 440000
B43: =+'Input Overall Performance Data'!B33 -> Operating Surplus/Profit | C43: =+C5-C41 -> 60000
B44: Operating Surplus % | C44: =IF(C43=0,0,+C43/C$5) -> 0.12
C47: =+'Input Customer Segment Data'!D9 -> Customer Segment 1 | D47: =+'Input Customer Segment Data'!E9 -> Customer Segment 2 | E47: =+'Input Customer Segment Data'!F9 -> Customer Segment 3 | F47: =+'Input Customer Segment Data'!G9 -> Customer Segment 4 | G47: =+'Input Customer Segment Data'!H9 -> Customer Segment 5 | H47: =+'Input Customer Segment Data'!I9 -> Total/ Average
B48: =+'Input Customer Segment Data'!B11 -> Revenue | J48: =+H47 -> Total/ Average | N48: Input
B49: Monetary | C49: =IF('Input Customer Segment Data'!$C11='Input Customer Segment Data'!$B89,'Input Customer Segment Data'!D11,'Input Customer Segment Data'!D12) -> 150000 | D49: =IF('Input Customer Segment Data'!$C11='Input Customer Segment Data'!$B89,'Input Customer Segment Data'!E11,'Input Customer Segment Data'!E12) -> 75000 | E49: =IF('Input Customer Segment Data'!$C11='Input Customer Segment Data'!$B89,'Input Customer Segment Data'!F11,'Input Customer Segment Data'!F12) -> 125000 | F49: =IF('Input Customer Segment Data'!$C11='Input Customer Segment Data'!$B89,'Input Customer Segment Data'!G11,'Input Customer Segment Data'!G12) -> 115000 | G49: =IF('Input Customer Segment Data'!$C11='Input Customer Segment Data'!$B89,'Input Customer Segment Data'!H11,'Input Customer Segment Data'!H12) -> 35000 | H49: =SUM(C49:G49) -> 500000 | J49: Number of Sales | L49: 0 | M49: =+N49*0.5 -> 4115 | N49: =+H$51 -> 8230 | O49: =+N49*1.5 -> 12345 | P49: =+N49*2 -> 16460
B50: Percent | C50: =+C49/$H$49 -> 0.3 | D50: 0.15 | E50: 0.25 | F50: 0.23 | G50: 0.07 | H50: 1 | J50: =+B$48 -> Revenue | L50: =+L49*L51 -> 0 | M50: =+M49*M51 -> 250000 | N50: =+H$49 -> 500000 | O50: =+O49*O51 -> 750000 | P50: =+P49*P51 -> 1000000
B51: Num Sales | C51: =IF('Input Customer Segment Data'!$C13='Input Customer Segment Data'!$B92,'Input Customer Segment Data'!D13,'Input Customer Segment Data'!D14) -> 4556 | D51: =IF('Input Customer Segment Data'!$C13='Input Customer Segment Data'!$B92,'Input Customer Segment Data'!E13,'Input Customer Segment Data'!E14) -> 433 | E51: =IF('Input Customer Segment Data'!$C13='Input Customer Segment Data'!$B92,'Input Customer Segment Data'!F13,'Input Customer Segment Data'!F14) -> 222 | F51: =IF('Input Customer Segment Data'!$C13='Input Customer Segment Data'!$B92,'Input Customer Segment Data'!G13,'Input Customer Segment Data'!G14) -> 2341 | G51: =IF('Input Customer Segment Data'!$C13='Input Customer Segment Data'!$B92,'Input Customer Segment Data'!H13,'Input Customer Segment Data'!H14) -> 678 | H51: =SUM(C51:G51) -> 8230 | J51: Unit Sales Price | L51: =+$N51 -> 60.75334143 | M51: =+$N51 -> 60.75334143 | N51: =+N50/N49 -> 60.75334143 | O51: =+$N51 -> 60.75334143 | P51: =+$N51 -> 60.75334143
B52: Percent | C52: =+C51/$H$51 -> 0.5535844471 | D52: 0.05261239368 | E52: 0.0269744836 | F52: 0.2844471446 | G52: 0.08238153098 | H52: 1 | J52: =+B$86 -> Total Variable Costs | L52: =+L53*L50 -> 0 | M52: =+M53*M50 -> 155000 | N52: =+H$86 -> 310000 | O52: =+O53*O50 -> 465000 | P52: =+P53*P50 -> 620000
B53: Price | C53: =+C49/C51 -> 32.92361721 | D53: 173.2101617 | E53: 563.0630631 | F53: 49.12430585 | G53: 51.62241888 | H53: 60.75334143 | J53: =+B$87 -> % of Segment Revenue | L53: =+$N53 -> 0.62 | M53: =+$N53 -> 0.62 | N53: =+N52/N50 -> 0.62 | O53: =+$N53 -> 0.62 | P53: =+$N53 -> 0.62
B54: =+'Input Customer Segment Data'!B15 -> Relative Indicator reference | C54: =+'Input Customer Segment Data'!C15 -> Monetary | J54: Variable COS per Unit | L54: =+L52/L49 ->  | M54: =+M52/M49 -> 37.66707169 | N54: =+N52/N49 -> 37.66707169 | O54: =+O52/O49 -> 37.66707169 | P54: =+P52/P49 -> 37.66707169
B55: =+'Input Customer Segment Data'!B16:C16 -> Variable Costs | J55: =+B$119 -> Total Fixed Costs | L55: =+$N55 -> 130000 | M55: =+$N55 -> 130000 | N55: =+H$119 -> 130000 | O55: =+$N55 -> 130000 | P55: =+$N55 -> 130000
B56: =+'Input Customer Segment Data'!B17:C17 -> Materials & Supplies | J56: Total Costs | L56: =+L55+L52 -> 130000 | M56: =+M55+M52 -> 285000 | N56: =+N55+N52 -> 440000 | O56: =+O55+O52 -> 595000 | P56: =+P55+P52 -> 750000
B57: Indicator | C57: =+'Input Customer Segment Data'!D17 -> 90 | D57: =+'Input Customer Segment Data'!E17 -> 110 | E57: =+'Input Customer Segment Data'!F17 -> 120 | F57: =+'Input Customer Segment Data'!G17 -> 123 | G57: =+'Input Customer Segment Data'!H17 -> 100 | H57: =AVERAGE(C57:G57) -> 108.6 | J57: =+B$120 -> Operating Surplus/Profit | L57: =+L50-L52-L55 -> -130000 | M57: =+M50-M52-M55 -> -35000 | N57: =+N50-N52-N55 -> 60000 | O57: =+O50-O52-O55 -> 155000 | P57: =+P50-P52-P55 -> 250000
B58: Effort | C58: =IF('Input Customer Segment Data'!$C15='Input Customer Segment Data'!$B93,C57/$H57*C$50,+C57/$H57*C$52) -> 0.2486187845 | D58: =IF('Input Customer Segment Data'!$C15='Input Customer Segment Data'!$B93,D57/$H57*D$50,+D57/$H57*D$52) -> 0.1519337017 | E58: =IF('Input Customer Segment Data'!$C15='Input Customer Segment Data'!$B93,E57/$H57*E$50,+E57/$H57*E$52) -> 0.2762430939 | F58: =IF('Input Customer Segment Data'!$C15='Input Customer Segment Data'!$B93,F57/$H57*F$50,+F57/$H57*F$52) -> 0.2604972376 | G58: =IF('Input Customer Segment Data'!$C15='Input Customer Segment Data'!$B93,G57/$H57*G$50,+G57/$H57*G$52) -> 0.06445672192 | H58: =SUM(C58:G58) -> 1.00174954 | J58: =+B$121 -> Return on Sales | L58: =+IF(L50=0,"N/A",L57/L50) -> N/A | M58: =+IF(M50=0,"N/A",M57/M50) -> -0.14 | N58: =+IF(N50=0,"N/A",N57/N50) -> 0.12 | O58: =+IF(O50=0,"N/A",O57/O50) -> 0.2066666667 | P58: =+IF(P50=0,"N/A",P57/P50) -> 0.25
B59: Expense | C59: =+C58/$H58*$C8 -> 2481.845758 | D59: =+D58/$H58*$C8 -> 1516.683519 | E59: =+E58/$H58*$C8 -> 2757.606398 | F59: =+F58/$H58*$C8 -> 2600.422833 | G59: =+G58/$H58*$C8 -> 643.4414928 | H59: =SUM(C59:G59) -> 10000 | J59: Breakeven Point Revenue | L59: =+L55/(1-L53) -> 342105.2632 | M59: =+M55/(1-M53) -> 342105.2632 | N59: =+N55/(1-N53) -> 342105.2632 | O59: =+O55/(1-O53) -> 342105.2632 | P59: =+P55/(1-P53) -> 342105.2632
B60: % of Segment Revenue | C60: =+C59/C$49 -> 0.01654563839 | D60: 0.02022244692 | E60: 0.02206085118 | F60: 0.02261237246 | G60: 0.01838404265 | H60: 0.02 | J60: Breakeven Point Number of Sales | L60: =+L59/L51 -> 5631.052632 | M60: =+M59/M51 -> 5631.052632 | N60: =+N59/N51 -> 5631.052632 | O60: =+O59/O51 -> 5631.052632 | P60: =+P59/P51 -> 5631.052632
B61: =+'Input Customer Segment Data'!B18:C18 -> Labor excluding Owner
B62: =+B$57 -> Indicator | C62: =+'Input Customer Segment Data'!D18 -> 80 | D62: =+'Input Customer Segment Data'!E18 -> 120 | E62: =+'Input Customer Segment Data'!F18 -> 89 | F62: =+'Input Customer Segment Data'!G18 -> 99 | G62: =+'Input Customer Segment Data'!H18 -> 68 | H62: =AVERAGE(C62:G62) -> 91.2 | J62: =+C47 -> Customer Segment 1 | N62: Input
B63: =+B$58 -> Effort | C63: =IF('Input Customer Segment Data'!$C15='Input Customer Segment Data'!$B93,C62/$H62*C$50,+C62/$H62*C$52) -> 0.2631578947 | D63: =IF('Input Customer Segment Data'!$C15='Input Customer Segment Data'!$B93,D62/$H62*D$50,+D62/$H62*D$52) -> 0.1973684211 | E63: =IF('Input Customer Segment Data'!$C15='Input Customer Segment Data'!$B93,E62/$H62*E$50,+E62/$H62*E$52) -> 0.2439692982 | F63: =IF('Input Customer Segment Data'!$C15='Input Customer Segment Data'!$B93,F62/$H62*F$50,+F62/$H62*F$52) -> 0.2496710526 | G63: =IF('Input Customer Segment Data'!$C15='Input Customer Segment Data'!$B93,G62/$H62*G$50,+G62/$H62*G$52) -> 0.05219298246 | H63: =SUM(C63:G63) -> 1.006359649 | J63: Number of Sales | L63: 0 | M63: =+N63*0.5 -> 2278 | N63: =+C$51 -> 4556 | O63: =+N63*1.5 -> 6834 | P63: =+N63*2 -> 9112
B64: =+B$59 -> Expense | C64: =+C63/$H63*$C10 -> 52298.97581 | D64: =+D63/$H63*$C10 -> 39224.23186 | E64: =+E63/$H63*$C10 -> 48485.50883 | F64: =+F63/$H63*$C10 -> 49618.6533 | G64: =+G63/$H63*$C10 -> 10372.6302 | H64: =SUM(C64:G64) -> 200000 | J64: =+B$48 -> Revenue | L64: =+L63*L65 -> 0 | M64: =+M63*M65 -> 75000 | N64: =+C$49 -> 150000 | O64: =+O63*O65 -> 225000 | P64: =+P63*P65 -> 300000
B65: =+B$60 -> % of Segment Revenue | C65: =+C64/C$49 -> 0.3486598387 | D65: 0.5229897581 | E65: 0.3878840706 | F65: 0.4314665504 | G65: 0.2963608629 | H65: 0.4 | J65: Unit Sales Price | L65: =+$N65 -> 32.92361721 | M65: =+$N65 -> 32.92361721 | N65: =+N64/N63 -> 32.92361721 | O65: =+$N65 -> 32.92361721 | P65: =+$N65 -> 32.92361721
B66: =+'Input Customer Segment Data'!B19:C19 -> Labor Owner | J66: =+B$86 -> Total Variable Costs | L66: =+L67*L64 -> 0 | M66: =+M67*M64 -> 44302.63894 | N66: =+C$86 -> 88605.27788 | O66: =+O67*O64 -> 132907.9168 | P66: =+P67*P64 -> 177210.5558
B67: =+B$57 -> Indicator | C67: =+'Input Customer Segment Data'!D19 -> 120 | D67: =+'Input Customer Segment Data'!E19 -> 110 | E67: =+'Input Customer Segment Data'!F19 -> 100 | F67: =+'Input Customer Segment Data'!G19 -> 90 | G67: =+'Input Customer Segment Data'!H19 -> 95 | H67: =AVERAGE(C67:G67) -> 103 | J67: =+B$87 -> % of Segment Revenue | L67: =+$N67 -> 0.5907018525 | M67: =+$N67 -> 0.5907018525 | N67: =+N66/N64 -> 0.5907018525 | O67: =+$N67 -> 0.5907018525 | P67: =+$N67 -> 0.5907018525
B68: =+B$58 -> Effort | C68: =IF('Input Customer Segment Data'!$C15='Input Customer Segment Data'!$B93,C67/$H67*C$50,+C67/$H67*C$52) -> 0.3495145631 | D68: =IF('Input Customer Segment Data'!$C15='Input Customer Segment Data'!$B93,D67/$H67*D$50,+D67/$H67*D$52) -> 0.1601941748 | E68: =IF('Input Customer Segment Data'!$C15='Input Customer Segment Data'!$B93,E67/$H67*E$50,+E67/$H67*E$52) -> 0.2427184466 | F68: =IF('Input Customer Segment Data'!$C15='Input Customer Segment Data'!$B93,F67/$H67*F$50,+F67/$H67*F$52) -> 0.2009708738 | G68: =IF('Input Customer Segment Data'!$C15='Input Customer Segment Data'!$B93,G67/$H67*G$50,+G67/$H67*G$52) -> 0.0645631068 | H68: =SUM(C68:G68) -> 1.017961165 | J68: Variable COS per Unit | L68: =+L66/L63 ->  | M68: =+M66/M63 -> 19.44804168 | N68: =+N66/N63 -> 19.44804168 | O68: =+O66/O63 -> 19.44804168 | P68: =+P66/P63 -> 19.44804168
B69: =+B$59 -> Expense | C69: =+C68/$H68*$C12 -> 17167.38197 | D69: =+D68/$H68*$C12 -> 7868.383405 | E69: =+E68/$H68*$C12 -> 11921.79304 | F69: =+F68/$H68*$C12 -> 9871.244635 | G69: =+G68/$H68*$C12 -> 3171.196948 | H69: =SUM(C69:G69) -> 50000 | J69: =+B$119 -> Total Fixed Costs | L69: =+$N69 -> 36102.77549 | M69: =+$N69 -> 36102.77549 | N69: =+C$119 -> 36102.77549 | O69: =+$N69 -> 36102.77549 | P69: =+$N69 -> 36102.77549
B70: =+B$60 -> % of Segment Revenue | C70: =+C69/C$49 -> 0.1144492132 | D70: 0.1049117787 | E70: 0.0953743443 | F70: 0.08583690987 | G70: 0.09060562709 | H70: 0.1 | J70: Total Costs | L70: =+L69+L66 -> 36102.77549 | M70: =+M69+M66 -> 80405.41443 | N70: =+N69+N66 -> 124708.0534 | O70: =+O69+O66 -> 169010.6923 | P70: =+P69+P66 -> 213313.3313
B71: =+'Input Customer Segment Data'!B20:C20 -> Distribution | J71: =+B$120 -> Operating Surplus/Profit | L71: =+L64-L66-L69 -> -36102.77549 | M71: =+M64-M66-M69 -> -5405.414435 | N71: =+N64-N66-N69 -> 25291.94663 | O71: =+O64-O66-O69 -> 55989.30769 | P71: =+P64-P66-P69 -> 86686.66875
B72: =+B$57 -> Indicator | C72: =+'Input Customer Segment Data'!D20 -> 100 | D72: =+'Input Customer Segment Data'!E20 -> 0 | E72: =+'Input Customer Segment Data'!F20 -> 67 | F72: =+'Input Customer Segment Data'!G20 -> 89 | G72: =+'Input Customer Segment Data'!H20 -> 90 | H72: =AVERAGE(C72:G72) -> 69.2 | J72: =+B$121 -> Return on Sales | L72: =+IF(L64=0,"N/A",L71/L64) -> N/A | M72: =+IF(M64=0,"N/A",M71/M64) -> -0.07207219246 | N72: =+IF(N64=0,"N/A",N71/N64) -> 0.1686129775 | O72: =+IF(O64=0,"N/A",O71/O64) -> 0.2488413675 | P72: =+IF(P64=0,"N/A",P71/P64) -> 0.2889555625
B73: =+B$58 -> Effort | C73: =IF('Input Customer Segment Data'!$C15='Input Customer Segment Data'!$B93,C72/$H72*C$50,+C72/$H72*C$52) -> 0.4335260116 | D73: =IF('Input Customer Segment Data'!$C15='Input Customer Segment Data'!$B93,D72/$H72*D$50,+D72/$H72*D$52) -> 0 | E73: =IF('Input Customer Segment Data'!$C15='Input Customer Segment Data'!$B93,E72/$H72*E$50,+E72/$H72*E$52) -> 0.2420520231 | F73: =IF('Input Customer Segment Data'!$C15='Input Customer Segment Data'!$B93,F72/$H72*F$50,+F72/$H72*F$52) -> 0.2958092486 | G73: =IF('Input Customer Segment Data'!$C15='Input Customer Segment Data'!$B93,G72/$H72*G$50,+G72/$H72*G$52) -> 0.09104046243 | H73: =SUM(C73:G73) -> 1.062427746 | J73: Breakeven Point Revenue | L73: =+L69/(1-L67) -> 88206.54508 | M73: =+M69/(1-M67) -> 88206.54508 | N73: =+N69/(1-N67) -> 88206.54508 | O73: =+O69/(1-O67) -> 88206.54508 | P73: =+P69/(1-P67) -> 88206.54508
B74: =+B$59 -> Expense | C74: =+C73/$H73*$C14 -> 8161.044614 | D74: =+D73/$H73*$C14 -> 0 | E74: =+E73/$H73*$C14 -> 4556.583243 | F74: =+F73/$H73*$C14 -> 5568.552775 | G74: =+G73/$H73*$C14 -> 1713.819369 | H74: =SUM(C74:G74) -> 20000 | J74: Breakeven Point Number of Sales | L74: =+L73/L65 -> 2679.126796 | M74: =+M73/M65 -> 2679.126796 | N74: =+N73/N65 -> 2679.126796 | O74: =+O73/O65 -> 2679.126796 | P74: =+P73/P65 -> 2679.126796
B75: =+B$60 -> % of Segment Revenue | C75: =+C74/C$49 -> 0.05440696409 | D75: 0 | E75: 0.03645266594 | F75: 0.04842219804 | G75: 0.04896626768 | H75: 0.04
B76: =+'Input Customer Segment Data'!B21:C21 -> Marketing | J76: =+D$47 -> Customer Segment 2 | N76: Input
B77: =+B$57 -> Indicator | C77: =+'Input Customer Segment Data'!D21 -> 70 | D77: =+'Input Customer Segment Data'!E21 -> 65 | E77: =+'Input Customer Segment Data'!F21 -> 130 | F77: =+'Input Customer Segment Data'!G21 -> 145 | G77: =+'Input Customer Segment Data'!H21 -> 100 | H77: =AVERAGE(C77:G77) -> 102 | J77: Number of Sales | L77: 0 | M77: =+N77*0.5 -> 216.5 | N77: =+D$51 -> 433 | O77: =+N77*1.5 -> 649.5 | P77: =+N77*2 -> 866
B78: =+B$58 -> Effort | C78: =IF('Input Customer Segment Data'!$C15='Input Customer Segment Data'!$B93,C77/$H77*C$50,+C77/$H77*C$52) -> 0.2058823529 | D78: =IF('Input Customer Segment Data'!$C15='Input Customer Segment Data'!$B93,D77/$H77*D$50,+D77/$H77*D$52) -> 0.09558823529 | E78: =IF('Input Customer Segment Data'!$C15='Input Customer Segment Data'!$B93,E77/$H77*E$50,+E77/$H77*E$52) -> 0.318627451 | F78: =IF('Input Customer Segment Data'!$C15='Input Customer Segment Data'!$B93,F77/$H77*F$50,+F77/$H77*F$52) -> 0.3269607843 | G78: =IF('Input Customer Segment Data'!$C15='Input Customer Segment Data'!$B93,G77/$H77*G$50,+G77/$H77*G$52) -> 0.06862745098 | H78: =SUM(C78:G78) -> 1.015686275 | J78: =+B$48 -> Revenue | L78: =+L77*L79 -> 0 | M78: =+M77*M79 -> 37500 | N78: =+D$49 -> 75000 | O78: =+O77*O79 -> 112500 | P78: =+P77*P79 -> 150000
B79: =+B$59 -> Expense | C79: =+C78/$H78*$C16 -> 2027.027027 | D79: =+D78/$H78*$C16 -> 941.1196911 | E79: =+E78/$H78*$C16 -> 3137.065637 | F79: =+F78/$H78*$C16 -> 3219.111969 | G79: =+G78/$H78*$C16 -> 675.6756757 | H79: =SUM(C79:G79) -> 10000 | J79: Unit Sales Price | L79: =+$N79 -> 173.2101617 | M79: =+$N79 -> 173.2101617 | N79: =+N78/N77 -> 173.2101617 | O79: =+$N79 -> 173.2101617 | P79: =+$N79 -> 173.2101617
B80: =+B$60 -> % of Segment Revenue | C80: =+C79/C$49 -> 0.01351351351 | D80: 0.01254826255 | E80: 0.0250965251 | F80: 0.02799227799 | G80: 0.01930501931 | H80: 0.02 | J80: =+B$86 -> Total Variable Costs | L80: =+L81*L78 -> 0 | M80: =+M81*M78 -> 25858.76719 | N80: =+D$86 -> 51717.53438 | O80: =+O81*O78 -> 77576.30156 | P80: =+P81*P78 -> 103435.0688
B81: =+'Input Customer Segment Data'!B22:C22 -> Other | J81: =+B$87 -> % of Segment Revenue | L81: =+$N81 -> 0.689567125 | M81: =+$N81 -> 0.689567125 | N81: =+N80/N78 -> 0.689567125 | O81: =+$N81 -> 0.689567125 | P81: =+$N81 -> 0.689567125
B82: =+B$57 -> Indicator | C82: =+'Input Customer Segment Data'!D22 -> 100 | D82: =+'Input Customer Segment Data'!E22 -> 67 | E82: =+'Input Customer Segment Data'!F22 -> 100 | F82: =+'Input Customer Segment Data'!G22 -> 90 | G82: =+'Input Customer Segment Data'!H22 -> 100 | H82: =AVERAGE(C82:G82) -> 91.4 | J82: Variable COS per Unit | L82: =+L80/L77 ->  | M82: =+M80/M77 -> 119.4400332 | N82: =+N80/N77 -> 119.4400332 | O82: =+O80/O77 -> 119.4400332 | P82: =+P80/P77 -> 119.4400332
B83: =+B$58 -> Effort | C83: =IF('Input Customer Segment Data'!$C15='Input Customer Segment Data'!$B93,C82/$H82*C$50,+C82/$H82*C$52) -> 0.3282275711 | D83: =IF('Input Customer Segment Data'!$C15='Input Customer Segment Data'!$B93,D82/$H82*D$50,+D82/$H82*D$52) -> 0.1099562363 | E83: =IF('Input Customer Segment Data'!$C15='Input Customer Segment Data'!$B93,E82/$H82*E$50,+E82/$H82*E$52) -> 0.2735229759 | F83: =IF('Input Customer Segment Data'!$C15='Input Customer Segment Data'!$B93,F82/$H82*F$50,+F82/$H82*F$52) -> 0.2264770241 | G83: =IF('Input Customer Segment Data'!$C15='Input Customer Segment Data'!$B93,G82/$H82*G$50,+G82/$H82*G$52) -> 0.07658643326 | H83: =SUM(C83:G83) -> 1.014770241 | J83: =+B$119 -> Total Fixed Costs | L83: =+$N83 -> 19677.10777 | M83: =+$N83 -> 19677.10777 | N83: =+D$119 -> 19677.10777 | O83: =+$N83 -> 19677.10777 | P83: =+$N83 -> 19677.10777
B84: =+B$59 -> Expense | C84: =+C83/$H83*$C18 -> 6469.002695 | D84: =+D83/$H83*$C18 -> 2167.115903 | E84: =+E83/$H83*$C18 -> 5390.83558 | F84: =+F83/$H83*$C18 -> 4463.61186 | G84: =+G83/$H83*$C18 -> 1509.433962 | H84: =SUM(C84:G84) -> 20000 | J84: Total Costs | L84: =+L83+L80 -> 19677.10777 | M84: =+M83+M80 -> 45535.87495 | N84: =+N83+N80 -> 71394.64214 | O84: =+O83+O80 -> 97253.40933 | P84: =+P83+P80 -> 123112.1765
B85: =+B$60 -> % of Segment Revenue | C85: =+C84/C$49 -> 0.04312668464 | D85: 0.02889487871 | E85: 0.04312668464 | F85: 0.03881401617 | G85: 0.04312668464 | H85: 0.04 | J85: =+B$120 -> Operating Surplus/Profit | L85: =+L78-L80-L83 -> -19677.10777 | M85: =+M78-M80-M83 -> -8035.874953 | N85: =+N78-N80-N83 -> 3605.357858 | O85: =+O78-O80-O83 -> 15246.59067 | P85: =+P78-P80-P83 -> 26887.82348
B86: =+'Input Customer Segment Data'!B23:C23 -> Total Variable Costs | C86: =+C84+C79+C74+C69+C64+C59 -> 88605.27788 | D86: 51717.53438 | E86: 76249.39272 | F86: 75341.59737 | G86: 18086.19765 | H86: 310000 | J86: =+B$121 -> Return on Sales | L86: =+IF(L78=0,"N/A",L85/L78) -> N/A | M86: =+IF(M78=0,"N/A",M85/M78) -> -0.2142899988 | N86: =+IF(N78=0,"N/A",N85/N78) -> 0.04807143811 | O86: =+IF(O78=0,"N/A",O85/O78) -> 0.1355252504 | P86: =+IF(P78=0,"N/A",P85/P78) -> 0.1792521565
B87: =+B60 -> % of Segment Revenue | C87: =+C86/C49 -> 0.5907018525 | D87: 0.689567125 | E87: 0.6099951418 | F87: 0.655144325 | G87: 0.5167485043 | H87: 0.62 | J87: Breakeven Point Revenue | L87: =+L83/(1-L81) -> 63386.03077 | M87: =+M83/(1-M81) -> 63386.03077 | N87: =+N83/(1-N81) -> 63386.03077 | O87: =+O83/(1-O81) -> 63386.03077 | P87: =+P83/(1-P81) -> 63386.03077
B88: =+'Input Customer Segment Data'!B24:C24 -> Fixed Costs | J88: Breakeven Point Number of Sales | L88: =+L87/L79 -> 365.9486843 | M88: =+M87/M79 -> 365.9486843 | N88: =+N87/N79 -> 365.9486843 | O88: =+O87/O79 -> 365.9486843 | P88: =+P87/P79 -> 365.9486843
B89: =+'Input Customer Segment Data'!B25:C25 -> Location
B90: =+B$57 -> Indicator | C90: =+'Input Customer Segment Data'!D25 -> 115 | D90: =+'Input Customer Segment Data'!E25 -> 90 | E90: =+'Input Customer Segment Data'!F25 -> 70 | F90: =+'Input Customer Segment Data'!G25 -> 110 | G90: =+'Input Customer Segment Data'!H25 -> 97 | H90: =AVERAGE(C90:G90) -> 96.4 | J90: =+E$47 -> Customer Segment 3 | N90: Input
B91: =+B$58 -> Effort | C91: =IF('Input Customer Segment Data'!$C15='Input Customer Segment Data'!$B93,C90/$H90*C$50,+C90/$H90*C$52) -> 0.3578838174 | D91: =IF('Input Customer Segment Data'!$C15='Input Customer Segment Data'!$B93,D90/$H90*D$50,+D90/$H90*D$52) -> 0.1400414938 | E91: =IF('Input Customer Segment Data'!$C15='Input Customer Segment Data'!$B93,E90/$H90*E$50,+E90/$H90*E$52) -> 0.1815352697 | F91: =IF('Input Customer Segment Data'!$C15='Input Customer Segment Data'!$B93,F90/$H90*F$50,+F90/$H90*F$52) -> 0.2624481328 | G91: =IF('Input Customer Segment Data'!$C15='Input Customer Segment Data'!$B93,G90/$H90*G$50,+G90/$H90*G$52) -> 0.07043568465 | H91: =SUM(C91:G91) -> 1.012344398 | J91: Number of Sales | L91: 0 | M91: =+N91*0.5 -> 111 | N91: =+E$51 -> 222 | O91: =+N91*1.5 -> 333 | P91: =+N91*2 -> 444
B92: =+B$59 -> Expense | C92: =+C91/$H91*$C26 -> 14140.79311 | D92: =+D91/$H91*$C26 -> 5533.353827 | E92: =+E91/$H91*$C26 -> 7172.866072 | F92: =+F91/$H91*$C26 -> 10369.91495 | G92: =+G91/$H91*$C26 -> 2783.072036 | H92: =SUM(C92:G92) -> 40000 | J92: =+B$48 -> Revenue | L92: =+L91*L93 -> 0 | M92: =+M91*M93 -> 62500 | N92: =+E$49 -> 125000 | O92: =+O91*O93 -> 187500 | P92: =+P91*P93 -> 250000
B93: =+B$60 -> % of Segment Revenue | C93: =+C92/C$49 -> 0.09427195409 | D93: 0.07377805103 | E93: 0.05738292858 | F93: 0.09017317348 | G93: 0.07951634389 | H93: 0.08 | J93: Unit Sales Price | L93: =+$N93 -> 563.0630631 | M93: =+$N93 -> 563.0630631 | N93: =+N92/N91 -> 563.0630631 | O93: =+$N93 -> 563.0630631 | P93: =+$N93 -> 563.0630631
B94: =+'Input Customer Segment Data'!B26:C26 -> Administration | J94: =+B$86 -> Total Variable Costs | L94: =+L95*L92 -> 0 | M94: =+M95*M92 -> 38124.69636 | N94: =+E$86 -> 76249.39272 | O94: =+O95*O92 -> 114374.0891 | P94: =+P95*P92 -> 152498.7854
B95: =+B$57 -> Indicator | C95: =+'Input Customer Segment Data'!D26 -> 85 | D95: =+'Input Customer Segment Data'!E26 -> 120 | E95: =+'Input Customer Segment Data'!F26 -> 134 | F95: =+'Input Customer Segment Data'!G26 -> 95 | G95: =+'Input Customer Segment Data'!H26 -> 100 | H95: =AVERAGE(C95:G95) -> 106.8 | J95: =+B$87 -> % of Segment Revenue | L95: =+$N95 -> 0.6099951418 | M95: =+$N95 -> 0.6099951418 | N95: =+N94/N92 -> 0.6099951418 | O95: =+$N95 -> 0.6099951418 | P95: =+$N95 -> 0.6099951418
B96: =+B$58 -> Effort | C96: =IF('Input Customer Segment Data'!$C15='Input Customer Segment Data'!$B93,C95/$H95*C$50,+C95/$H95*C$52) -> 0.2387640449 | D96: =IF('Input Customer Segment Data'!$C15='Input Customer Segment Data'!$B93,D95/$H95*D$50,+D95/$H95*D$52) -> 0.1685393258 | E96: =IF('Input Customer Segment Data'!$C15='Input Customer Segment Data'!$B93,E95/$H95*E$50,+E95/$H95*E$52) -> 0.313670412 | F96: =IF('Input Customer Segment Data'!$C15='Input Customer Segment Data'!$B93,F95/$H95*F$50,+F95/$H95*F$52) -> 0.204588015 | G96: =IF('Input Customer Segment Data'!$C15='Input Customer Segment Data'!$B93,G95/$H95*G$50,+G95/$H95*G$52) -> 0.06554307116 | H96: =SUM(C96:G96) -> 0.9911048689 | J96: Variable COS per Unit | L96: =+L94/L91 ->  | M96: =+M94/M91 -> 343.465733 | N96: =+N94/N91 -> 343.465733 | O96: =+O94/O91 -> 343.465733 | P96: =+P94/P91 -> 343.465733
B97: =+B$59 -> Expense | C97: =+C96/$H96*$C28 -> 7227.208314 | D97: =+D96/$H96*$C28 -> 5101.55881 | E97: =+E96/$H96*$C28 -> 9494.567785 | F97: =+F96/$H96*$C28 -> 6192.725555 | G97: =+G96/$H96*$C28 -> 1983.939537 | H97: =SUM(C97:G97) -> 30000 | J97: =+B$119 -> Total Fixed Costs | L97: =+$N97 -> 34361.33032 | M97: =+$N97 -> 34361.33032 | N97: =+E$119 -> 34361.33032 | O97: =+$N97 -> 34361.33032 | P97: =+$N97 -> 34361.33032
B98: =+B$60 -> % of Segment Revenue | C98: =+C97/C$49 -> 0.04818138876 | D98: 0.06802078413 | E98: 0.07595654228 | F98: 0.05384978744 | G98: 0.05668398677 | H98: 0.06 | J98: Total Costs | L98: =+L97+L94 -> 34361.33032 | M98: =+M97+M94 -> 72486.02668 | N98: =+N97+N94 -> 110610.723 | O98: =+O97+O94 -> 148735.4194 | P98: =+P97+P94 -> 186860.1158
B99: =+'Input Customer Segment Data'!B27:C27 -> Labor excluding Owner | J99: =+B$120 -> Operating Surplus/Profit | L99: =+L92-L94-L97 -> -34361.33032 | M99: =+M92-M94-M97 -> -9986.026682 | N99: =+N92-N94-N97 -> 14389.27696 | O99: =+O92-O94-O97 -> 38764.5806 | P99: =+P92-P94-P97 -> 63139.88424
B100: =+B$57 -> Indicator | C100: =+'Input Customer Segment Data'!D27 -> 100 | D100: =+'Input Customer Segment Data'!E27 -> 100 | E100: =+'Input Customer Segment Data'!F27 -> 110 | F100: =+'Input Customer Segment Data'!G27 -> 100 | G100: =+'Input Customer Segment Data'!H27 -> 90 | H100: =AVERAGE(C100:G100) -> 100 | J100: =+B$121 -> Return on Sales | L100: =+IF(L92=0,"N/A",L99/L92) -> N/A | M100: =+IF(M92=0,"N/A",M99/M92) -> -0.1597764269 | N100: =+IF(N92=0,"N/A",N99/N92) -> 0.1151142157 | O100: =+IF(O92=0,"N/A",O99/O92) -> 0.2067444299 | P100: =+IF(P92=0,"N/A",P99/P92) -> 0.252559537
B101: =+B$58 -> Effort | C101: =IF('Input Customer Segment Data'!$C15='Input Customer Segment Data'!$B93,C100/$H100*C$50,+C100/$H100*C$52) -> 0.3 | D101: =IF('Input Customer Segment Data'!$C15='Input Customer Segment Data'!$B93,D100/$H100*D$50,+D100/$H100*D$52) -> 0.15 | E101: =IF('Input Customer Segment Data'!$C15='Input Customer Segment Data'!$B93,E100/$H100*E$50,+E100/$H100*E$52) -> 0.275 | F101: =IF('Input Customer Segment Data'!$C15='Input Customer Segment Data'!$B93,F100/$H100*F$50,+F100/$H100*F$52) -> 0.23 | G101: =IF('Input Customer Segment Data'!$C15='Input Customer Segment Data'!$B93,G100/$H100*G$50,+G100/$H100*G$52) -> 0.063 | H101: =SUM(C101:G101) -> 1.018 | J101: Breakeven Point Revenue | L101: =+L97/(1-L95) -> 88104.87766 | M101: =+M97/(1-M95) -> 88104.87766 | N101: =+N97/(1-N95) -> 88104.87766 | O101: =+O97/(1-O95) -> 88104.87766 | P101: =+P97/(1-P95) -> 88104.87766
B102: =+B$59 -> Expense | C102: =+C101/$H101*$C30 -> 14734.77407 | D102: =+D101/$H101*$C30 -> 7367.387033 | E102: =+E101/$H101*$C30 -> 13506.87623 | F102: =+F101/$H101*$C30 -> 11296.66012 | G102: =+G101/$H101*$C30 -> 3094.302554 | H102: =SUM(C102:G102) -> 50000 | J102: Breakeven Point Number of Sales | L102: =+L101/L93 -> 156.4742627 | M102: =+M101/M93 -> 156.4742627 | N102: =+N101/N93 -> 156.4742627 | O102: =+O101/O93 -> 156.4742627 | P102: =+P101/P93 -> 156.4742627
B103: =+B$60 -> % of Segment Revenue | C103: =+C102/C$49 -> 0.09823182711 | D103: 0.09823182711 | E103: 0.1080550098 | F103: 0.09823182711 | G103: 0.0884086444 | H103: 0.1
B104: =+'Input Customer Segment Data'!B28:C28 -> Labor Owner | J104: =+F$47 -> Customer Segment 4 | N104: Input
B105: =+B$57 -> Indicator | C105: =+'Input Customer Segment Data'!D28 -> 0 | D105: =+'Input Customer Segment Data'!E28 -> 80 | E105: =+'Input Customer Segment Data'!F28 -> 120 | F105: =+'Input Customer Segment Data'!G28 -> 100 | G105: =+'Input Customer Segment Data'!H28 -> 95 | H105: =AVERAGE(C105:G105) -> 79 | J105: Number of Sales | L105: 0 | M105: =+N105*0.5 -> 1170.5 | N105: =+F$51 -> 2341 | O105: =+N105*1.5 -> 3511.5 | P105: =+N105*2 -> 4682
B106: =+B$58 -> Effort | C106: =IF('Input Customer Segment Data'!$C15='Input Customer Segment Data'!$B93,C105/$H105*C$50,+C105/$H105*C$52) -> 0 | D106: =IF('Input Customer Segment Data'!$C15='Input Customer Segment Data'!$B93,D105/$H105*D$50,+D105/$H105*D$52) -> 0.1518987342 | E106: =IF('Input Customer Segment Data'!$C15='Input Customer Segment Data'!$B93,E105/$H105*E$50,+E105/$H105*E$52) -> 0.3797468354 | F106: =IF('Input Customer Segment Data'!$C15='Input Customer Segment Data'!$B93,F105/$H105*F$50,+F105/$H105*F$52) -> 0.2911392405 | G106: =IF('Input Customer Segment Data'!$C15='Input Customer Segment Data'!$B93,G105/$H105*G$50,+G105/$H105*G$52) -> 0.08417721519 | H106: =SUM(C106:G106) -> 0.9069620253 | J106: =+B$48 -> Revenue | L106: =+L105*L107 -> 0 | M106: =+M105*M107 -> 57500 | N106: =+F$49 -> 115000 | O106: =+O105*O107 -> 172500 | P106: =+P105*P107 -> 230000
B107: =+B$59 -> Expense | C107: =+C106/$H106*$C32 -> 0 | D107: =+D106/$H106*$C32 -> 1674.808095 | E107: =+E106/$H106*$C32 -> 4187.020237 | F107: =+F106/$H106*$C32 -> 3210.048849 | G107: =+G106/$H106*$C32 -> 928.1228193 | H107: =SUM(C107:G107) -> 10000 | J107: Unit Sales Price | L107: =+$N107 -> 49.12430585 | M107: =+$N107 -> 49.12430585 | N107: =+N106/N105 -> 49.12430585 | O107: =+$N107 -> 49.12430585 | P107: =+$N107 -> 49.12430585
B108: =+B$60 -> % of Segment Revenue | C108: =+C107/C$49 -> 0 | D108: 0.0223307746 | E108: 0.0334961619 | F108: 0.02791346825 | G108: 0.02651779484 | H108: 0.02 | J108: =+B$86 -> Total Variable Costs | L108: =+L109*L106 -> 0 | M108: =+M109*M106 -> 37670.79869 | N108: =+F$86 -> 75341.59737 | O108: =+O109*O106 -> 113012.3961 | P108: =+P109*P106 -> 150683.1947
B109: =+'Input Customer Segment Data'!B29:C29 -> Interest Costs | J109: =+B$87 -> % of Segment Revenue | L109: =+$N109 -> 0.655144325 | M109: =+$N109 -> 0.655144325 | N109: =+N108/N106 -> 0.655144325 | O109: =+$N109 -> 0.655144325 | P109: =+$N109 -> 0.655144325
B110: =+B$57 -> Indicator | C110: =+'Input Customer Segment Data'!D29 -> 120 | D110: =+'Input Customer Segment Data'!E29 -> 100 | E110: =+'Input Customer Segment Data'!F29 -> 80 | F110: =+'Input Customer Segment Data'!G29 -> 100 | G110: =+'Input Customer Segment Data'!H29 -> 100 | H110: =AVERAGE(C110:G110) -> 100 | J110: Variable COS per Unit | L110: =+L108/L105 ->  | M110: =+M108/M105 -> 32.1835102 | N110: =+N108/N105 -> 32.1835102 | O110: =+O108/O105 -> 32.1835102 | P110: =+P108/P105 -> 32.1835102
B111: =+B$58 -> Effort | C111: =IF('Input Customer Segment Data'!$C15='Input Customer Segment Data'!$B93,C110/$H110*C$50,+C110/$H110*C$52) -> 0.36 | D111: =IF('Input Customer Segment Data'!$C15='Input Customer Segment Data'!$B93,D110/$H110*D$50,+D110/$H110*D$52) -> 0.15 | E111: =IF('Input Customer Segment Data'!$C15='Input Customer Segment Data'!$B93,E110/$H110*E$50,+E110/$H110*E$52) -> 0.2 | F111: =IF('Input Customer Segment Data'!$C15='Input Customer Segment Data'!$B93,F110/$H110*F$50,+F110/$H110*F$52) -> 0.23 | G111: =IF('Input Customer Segment Data'!$C15='Input Customer Segment Data'!$B93,G110/$H110*G$50,+G110/$H110*G$52) -> 0.07 | H111: =SUM(C111:G111) -> 1.01 | J111: =+B$119 -> Total Fixed Costs | L111: =+$N111 -> 31069.34947 | M111: =+$N111 -> 31069.34947 | N111: =+F$119 -> 31069.34947 | O111: =+$N111 -> 31069.34947 | P111: =+$N111 -> 31069.34947
B112: =+B$59 -> Expense | C112: =+C111/$H111*$C34 -> 0 | D112: =+D111/$H111*$C34 -> 0 | E112: =+E111/$H111*$C34 -> 0 | F112: =+F111/$H111*$C34 -> 0 | G112: =+G111/$H111*$C34 -> 0 | H112: =SUM(C112:G112) -> 0 | J112: Total Costs | L112: =+L111+L108 -> 31069.34947 | M112: =+M111+M108 -> 68740.14816 | N112: =+N111+N108 -> 106410.9468 | O112: =+O111+O108 -> 144081.7455 | P112: =+P111+P108 -> 181752.5442
B113: =+B$60 -> % of Segment Revenue | C113: =+C112/C$49 -> 0 | D113: 0 | E113: 0 | F113: 0 | G113: 0 | H113: 0 | J113: =+B$120 -> Operating Surplus/Profit | L113: =+L106-L108-L111 -> -31069.34947 | M113: =+M106-M108-M111 -> -11240.14816 | N113: =+N106-N108-N111 -> 8589.053155 | O113: =+O106-O108-O111 -> 28418.25447 | P113: =+P106-P108-P111 -> 48247.45578
B114: =+'Input Customer Segment Data'!B30:C30 -> Other | J114: =+B$121 -> Return on Sales | L114: =+IF(L106=0,"N/A",L113/L106) -> N/A | M114: =+IF(M106=0,"N/A",M113/M106) -> -0.1954808375 | N114: =+IF(N106=0,"N/A",N113/N106) -> 0.07468741874 | O114: =+IF(O106=0,"N/A",O113/O106) -> 0.1647435042 | P114: =+IF(P106=0,"N/A",P113/P106) -> 0.2097715469
B115: =+B$57 -> Indicator | C115: =+'Input Customer Segment Data'!D30 -> 100 | D115: =+'Input Customer Segment Data'!E30 -> 100 | E115: =+'Input Customer Segment Data'!F30 -> 100 | F115: =+'Input Customer Segment Data'!G30 -> 100 | G115: =+'Input Customer Segment Data'!H30 -> 100 | H115: =AVERAGE(C115:G115) -> 100 | J115: Breakeven Point Revenue | L115: =+L111/(1-L109) -> 90093.77465 | M115: =+M111/(1-M109) -> 90093.77465 | N115: =+N111/(1-N109) -> 90093.77465 | O115: =+O111/(1-O109) -> 90093.77465 | P115: =+P111/(1-P109) -> 90093.77465
B116: =+B$58 -> Effort | C116: =IF('Input Customer Segment Data'!$C15='Input Customer Segment Data'!$B93,C115/$H115*C$50,+C115/$H115*C$52) -> 0.3 | D116: =IF('Input Customer Segment Data'!$C15='Input Customer Segment Data'!$B93,D115/$H115*D$50,+D115/$H115*D$52) -> 0.15 | E116: =IF('Input Customer Segment Data'!$C15='Input Customer Segment Data'!$B93,E115/$H115*E$50,+E115/$H115*E$52) -> 0.25 | F116: =IF('Input Customer Segment Data'!$C15='Input Customer Segment Data'!$B93,F115/$H115*F$50,+F115/$H115*F$52) -> 0.23 | G116: =IF('Input Customer Segment Data'!$C15='Input Customer Segment Data'!$B93,G115/$H115*G$50,+G115/$H115*G$52) -> 0.07 | H116: =SUM(C116:G116) -> 1 | J116: Breakeven Point Number of Sales | L116: =+L115/L107 -> 1833.995882 | M116: =+M115/M107 -> 1833.995882 | N116: =+N115/N107 -> 1833.995882 | O116: =+O115/O107 -> 1833.995882 | P116: =+P115/P107 -> 1833.995882
B117: =+B$59 -> Expense | C117: =+C116/$H116*$C36 -> 0 | D117: =+D116/$H116*$C36 -> 0 | E117: =+E116/$H116*$C36 -> 0 | F117: =+F116/$H116*$C36 -> 0 | G117: =+G116/$H116*$C36 -> 0 | H117: =SUM(C117:G117) -> 0
B118: =+B$60 -> % of Segment Revenue | C118: =+C117/C$49 -> 0 | D118: 0 | E118: 0 | F118: 0 | G118: 0 | H118: 0 | J118: =+G$47 -> Customer Segment 5 | N118: Input
B119: =+'Input Customer Segment Data'!B31:C31 -> Total Fixed Costs | C119: =+C117+C112+C107+C102+C97+C92 -> 36102.77549 | D119: 19677.10777 | E119: 34361.33032 | F119: 31069.34947 | G119: 8789.436946 | H119: 130000 | J119: Number of Sales | L119: 0 | M119: =+N119*0.5 -> 339 | N119: =+G$51 -> 678 | O119: =+N119*1.5 -> 1017 | P119: =+N119*2 -> 1356
B120: =+'Input Customer Segment Data'!B32:C32 -> Operating Surplus/Profit | C120: =+C49-C86-C119 -> 25291.94663 | D120: 3605.357858 | E120: 14389.27696 | F120: 8589.053155 | G120: 8124.365403 | H120: 60000 | J120: =+B$48 -> Revenue | L120: =+L119*L121 -> 0 | M120: =+M119*M121 -> 17500 | N120: =+G$49 -> 35000 | O120: =+O119*O121 -> 52500 | P120: =+P119*P121 -> 70000
B121: =+'Input Customer Segment Data'!B33:C33 -> Return on Sales | C121: =+C120/C49 -> 0.1686129775 | D121: 0.04807143811 | E121: 0.1151142157 | F121: 0.07468741874 | G121: 0.2321247258 | H121: 0.12 | J121: Unit Sales Price | L121: =+$N121 -> 51.62241888 | M121: =+$N121 -> 51.62241888 | N121: =+N120/N119 -> 51.62241888 | O121: =+$N121 -> 51.62241888 | P121: =+$N121 -> 51.62241888
B122: =+'Input Customer Segment Data'!B34:C34 -> Return on Sales Level | C122: =+C121/AVERAGE($C121:$G121) -> 1.320154497 | D122: =+D121/AVERAGE($C121:$G121) -> 0.3763750937 | E122: =+E121/AVERAGE($C121:$G121) -> 0.9012861983 | F122: =+F121/AVERAGE($C121:$G121) -> 0.584764786 | G122: =+G121/AVERAGE($C121:$G121) -> 1.817419425 | J122: =+B$86 -> Total Variable Costs | L122: =+L123*L120 -> 0 | M122: =+M123*M120 -> 9043.098825 | N122: =+G$86 -> 18086.19765 | O122: =+O123*O120 -> 27129.29648 | P122: =+P123*P120 -> 36172.3953
B123: =+'Input Customer Segment Data'!B35:C35 -> Profit Contribution | C123: =+C120/$H120 -> 0.4215324438 | D123: 0.06008929764 | E123: 0.2398212826 | F123: 0.1431508859 | G123: 0.1354060901 | H123: 1 | J123: =+B$87 -> % of Segment Revenue | L123: =+$N123 -> 0.5167485043 | M123: =+$N123 -> 0.5167485043 | N123: =+N122/N120 -> 0.5167485043 | O123: =+$N123 -> 0.5167485043 | P123: =+$N123 -> 0.5167485043
B124: =+'Input Customer Segment Data'!B36:C36 -> Profit Contribution Level | C124: =+C123/AVERAGE($C123:$G123) -> 2.107662219 | D124: =+D123/AVERAGE($C123:$G123) -> 0.3004464882 | E124: =+E123/AVERAGE($C123:$G123) -> 1.199106413 | F124: =+F123/AVERAGE($C123:$G123) -> 0.7157544296 | G124: =+G123/AVERAGE($C123:$G123) -> 0.6770304503 | J124: Variable COS per Unit | L124: =+L122/L119 ->  | M124: =+M122/M119 -> 26.67580774 | N124: =+N122/N119 -> 26.67580774 | O124: =+O122/O119 -> 26.67580774 | P124: =+P122/P119 -> 26.67580774
J125: =+B$119 -> Total Fixed Costs | L125: =+$N125 -> 8789.436946 | M125: =+$N125 -> 8789.436946 | N125: =+G$119 -> 8789.436946 | O125: =+$N125 -> 8789.436946 | P125: =+$N125 -> 8789.436946
B126: =+'Input Customer Segment Data'!B38:C38 -> Breakeven Points | J126: Total Costs | L126: =+L125+L122 -> 8789.436946 | M126: =+M125+M122 -> 17832.53577 | N126: =+N125+N122 -> 26875.6346 | O126: =+O125+O122 -> 35918.73342 | P126: =+P125+P122 -> 44961.83225
B127: =+'Input Customer Segment Data'!B39:C39 -> Revenue | C127: =+C119/(1-C87) -> 88206.54508 | D127: 63386.03077 | E127: 88104.87766 | F127: 90093.77465 | G127: 18188.12156 | H127: 342105.2632 | J127: =+B$120 -> Operating Surplus/Profit | L127: =+L120-L122-L125 -> -8789.436946 | M127: =+M120-M122-M125 -> -332.5357716 | N127: =+N120-N122-N125 -> 8124.365403 | O127: =+O120-O122-O125 -> 16581.26658 | P127: =+P120-P122-P125 -> 25038.16775
B128: =+'Input Customer Segment Data'!B40:C40 -> Number of Sales | C128: =+C127/C53 -> 2679.126796 | D128: 365.9486843 | E128: 156.4742627 | F128: 1833.995882 | G128: 352.3298976 | H128: 5631.052632 | J128: =+B$121 -> Return on Sales | L128: =+IF(L120=0,"N/A",L127/L120) -> N/A | M128: =+IF(M120=0,"N/A",M127/M120) -> -0.01900204409 | N128: =+IF(N120=0,"N/A",N127/N120) -> 0.2321247258 | O128: =+IF(O120=0,"N/A",O127/O120) -> 0.3158336491 | P128: =+IF(P120=0,"N/A",P127/P120) -> 0.3576881108
J129: Breakeven Point Revenue | L129: =+L125/(1-L123) -> 18188.12156 | M129: =+M125/(1-M123) -> 18188.12156 | N129: =+N125/(1-N123) -> 18188.12156 | O129: =+O125/(1-O123) -> 18188.12156 | P129: =+P125/(1-P123) -> 18188.12156
B130: =+'Input Customer Segment Data'!B42:C42 -> Potential & Ability | J130: Breakeven Point Number of Sales | L130: =+L129/L121 -> 352.3298976 | M130: =+M129/M121 -> 352.3298976 | N130: =+N129/N121 -> 352.3298976 | O130: =+O129/O121 -> 352.3298976 | P130: =+P129/P121 -> 352.3298976
B131: =+'Input Customer Segment Data'!B43:C43 -> Potential | C131: =+'Input Customer Segment Data'!D43 -> 90 | D131: =+'Input Customer Segment Data'!E43 -> 70 | E131: =+'Input Customer Segment Data'!F43 -> 85 | F131: =+'Input Customer Segment Data'!G43 -> 100 | G131: =+'Input Customer Segment Data'!H43 -> 110 | H131: =AVERAGE(C131:G131) -> 91
B132: =+'Input Customer Segment Data'!B44:C44 -> Business Ability | C132: =+'Input Customer Segment Data'!D44 -> 120 | D132: =+'Input Customer Segment Data'!E44 -> 80 | E132: =+'Input Customer Segment Data'!F44 -> 90 | F132: =+'Input Customer Segment Data'!G44 -> 98 | G132: =+'Input Customer Segment Data'!H44 -> 123 | H132: =AVERAGE(C132:G132) -> 102.2
B133: =+'Input Customer Segment Data'!B45:C45 -> Opportunity Level | C133: =+C131/$H131*C132/$H132 -> 1.161265349 | D133: =+D131/$H131*D132/$H132 -> 0.6021375884 | E133: =+E131/$H131*E132/$H132 -> 0.8225629556 | F133: =+F131/$H131*F132/$H132 -> 1.05374078 | G133: =+G131/$H131*G132/$H132 -> 1.454807423
B135: Recommendation
B136: =+B122 -> Return on Sales Level | C136: 1.320154497 | D136: 0.3763750937 | E136: 0.9012861983 | F136: 0.584764786 | G136: 1.817419425
C137: =IF(C136>1.5,"very high",IF(C136>1.1,"high",IF(C136>0.9,"average",IF(C136>0.5,"low","very low")))) -> high | D137: =IF(D136>1.5,"very high",IF(D136>1.1,"high",IF(D136>0.9,"average",IF(D136>0.5,"low","very low")))) -> very low | E137: =IF(E136>1.5,"very high",IF(E136>1.1,"high",IF(E136>0.9,"average",IF(E136>0.5,"low","very low")))) -> average | F137: =IF(F136>1.5,"very high",IF(F136>1.1,"high",IF(F136>0.9,"average",IF(F136>0.5,"low","very low")))) -> low | G137: =IF(G136>1.5,"very high",IF(G136>1.1,"high",IF(G136>0.9,"average",IF(G136>0.5,"low","very low")))) -> very high
B138: =+B124 -> Profit Contribution Level | C138: 2.107662219 | D138: 0.3004464882 | E138: 1.199106413 | F138: 0.7157544296 | G138: 0.6770304503
C139: =IF(C138>1.5,"a very high",IF(C138>1.1,"a high",IF(C138>0.9,"an average",IF(C138>0.5,"a low","a very low")))) -> a very high | D139: =IF(D138>1.5,"a very high",IF(D138>1.1,"a high",IF(D138>0.9,"an average",IF(D138>0.5,"a low","a very low")))) -> a very low | E139: =IF(E138>1.5,"a very high",IF(E138>1.1,"a high",IF(E138>0.9,"an average",IF(E138>0.5,"a low","a very low")))) -> a high | F139: =IF(F138>1.5,"a very high",IF(F138>1.1,"a high",IF(F138>0.9,"an average",IF(F138>0.5,"a low","a very low")))) -> a low | G139: =IF(G138>1.5,"a very high",IF(G138>1.1,"a high",IF(G138>0.9,"an average",IF(G138>0.5,"a low","a very low")))) -> a low
B140: =+B133 -> Opportunity Level | C140: 1.161265349 | D140: 0.6021375884 | E140: 0.8225629556 | F140: 1.05374078 | G140: 1.454807423
C141: =IF(C$140>1.5,"very high",IF(C$140>1.1,"high",IF(C$140>0.9,"average",IF(C$140>0.5,"low","very low")))) -> high | D141: =IF(D$140>1.5,"very high",IF(D$140>1.1,"high",IF(D$140>0.9,"average",IF(D$140>0.5,"low","very low")))) -> low | E141: =IF(E$140>1.5,"very high",IF(E$140>1.1,"high",IF(E$140>0.9,"average",IF(E$140>0.5,"low","very low")))) -> low | F141: =IF(F$140>1.5,"very high",IF(F$140>1.1,"high",IF(F$140>0.9,"average",IF(F$140>0.5,"low","very low")))) -> average | G141: =IF(G$140>1.5,"very high",IF(G$140>1.1,"high",IF(G$140>0.9,"average",IF(G$140>0.5,"low","very low")))) -> high
B142: =CONCATENATE(B48,C142,B120) -> Revenue & Operating Surplus/Profit | C142: &
F145: ROS | G145: PC | H145: OPPL | I145: =+C47 -> Customer Segment 1 | J145: =+D47 -> Customer Segment 2 | K145: =+E47 -> Customer Segment 3 | L145: =+F47 -> Customer Segment 4 | M145: =+G47 -> Customer Segment 5 | N145: =+I145 -> Customer Segment 1 | O145: =+J145 -> Customer Segment 2 | P145: =+K145 -> Customer Segment 3 | Q145: =+L145 -> Customer Segment 4 | R145: =+M145 -> Customer Segment 5
B146: Develop this segment for current and future profit. | F146: 1.1 | G146: 1.1 | H146: 1.1 | I146: =IF(C$122>$F146,IF(C$124>$G146,IF(C$133>$H146,1,0),0),0) -> 1 | J146: =IF(D$122>$F146,IF(D$124>$G146,IF(D$133>$H146,1,0),0),0) -> 0 | K146: =IF(E$122>$F146,IF(E$124>$G146,IF(E$133>$H146,1,0),0),0) -> 0 | L146: =IF(F$122>$F146,IF(F$124>$G146,IF(F$133>$H146,1,0),0),0) -> 0 | M146: =IF(G$122>$F146,IF(G$124>$G146,IF(G$133>$H146,1,0),0),0) -> 0 | N146: =IF(I146=1,$B146,"") -> Develop this segment for current and future profit. | O146: =IF(J146=1,$B146,"") -> 
B147: Maintain for this segment for current profit. Are there better segments for future profits? | F147: 1.1 | G147: 1.1 | H147: 0.9 | I147: =IF(SUM(I146)=0,IF(C$122>$F147,IF(C$124>$G147,IF(C$133>$H147,1,0),0),0),0) -> 0 | J147: =IF(SUM(J146)=0,IF(D$122>$F147,IF(D$124>$G147,IF(D$133>$H147,1,0),0),0),0) -> 0 | K147: =IF(SUM(K146)=0,IF(E$122>$F147,IF(E$124>$G147,IF(E$133>$H147,1,0),0),0),0) -> 0 | L147: =IF(SUM(L146)=0,IF(F$122>$F147,IF(F$124>$G147,IF(F$133>$H147,1,0),0),0),0) -> 0 | M147: =IF(SUM(M146)=0,IF(G$122>$F147,IF(G$124>$G147,IF(G$133>$H147,1,0),0),0),0) -> 0 | N147: =IF(I147=1,$B147,"") -> 
B148: Maintain for this segment for current profit, develop another segment for future profit. | F148: 1.1 | G148: 1.1 | H148: 0 | I148: =IF(SUM(I146:I147)=0,IF(C$122>$F148,IF(C$124>$G148,1,0),0),0) -> 0 | J148: =IF(SUM(J146:J147)=0,IF(D$122>$F148,IF(D$124>$G148,1,0),0),0) -> 0 | K148: =IF(SUM(K146:K147)=0,IF(E$122>$F148,IF(E$124>$G148,1,0),0),0) -> 0 | L148: =IF(SUM(L146:L147)=0,IF(F$122>$F148,IF(F$124>$G148,1,0),0),0) -> 0 | M148: =IF(SUM(M146:M147)=0,IF(G$122>$F148,IF(G$124>$G148,1,0),0),0) -> 0
B149: =+B146 -> Develop this segment for current and future profit. | F149: 1.1 | G149: 0.9 | H149: 1.1 | I149: =IF(SUM(I146:I148)=0,IF(C$122>$F149,IF(C$124>$G149,IF(C$133>$H149,1,0),0),0),0) -> 0 | J149: =IF(SUM(J146:J148)=0,IF(D$122>$F149,IF(D$124>$G149,IF(D$133>$H149,1,0),0),0),0) -> 0 | K149: =IF(SUM(K146:K148)=0,IF(E$122>$F149,IF(E$124>$G149,IF(E$133>$H149,1,0),0),0),0) -> 0 | L149: =IF(SUM(L146:L148)=0,IF(F$122>$F149,IF(F$124>$G149,IF(F$133>$H149,1,0),0),0),0) -> 0 | M149: =IF(SUM(M146:M148)=0,IF(G$122>$F149,IF(G$124>$G149,IF(G$133>$H149,1,0),0),0),0) -> 0
B150: =+B147 -> Maintain for this segment for current profit. Are there better segments for future profits? | F150: 1.1 | G150: 0.9 | H150: 0.9 | I150: =IF(SUM(I146:I149)=0,IF(C$122>$F150,IF(C$124>$G150,IF(C$133>$H150,1,0),0),0),0) -> 0 | J150: =IF(SUM(J146:J149)=0,IF(D$122>$F150,IF(D$124>$G150,IF(D$133>$H150,1,0),0),0),0) -> 0 | K150: =IF(SUM(K146:K149)=0,IF(E$122>$F150,IF(E$124>$G150,IF(E$133>$H150,1,0),0),0),0) -> 0 | L150: =IF(SUM(L146:L149)=0,IF(F$122>$F150,IF(F$124>$G150,IF(F$133>$H150,1,0),0),0),0) -> 0 | M150: =IF(SUM(M146:M149)=0,IF(G$122>$F150,IF(G$124>$G150,IF(G$133>$H150,1,0),0),0),0) -> 0
B151: =+B148 -> Maintain for this segment for current profit, develop another segment for future profit. | F151: 1.1 | G151: 0.9 | H151: 0 | I151: =IF(SUM(I146:I150)=0,IF(C$122>$F151,IF(C$124>$G151,1,0),0),0) -> 0 | J151: =IF(SUM(J146:J150)=0,IF(D$122>$F151,IF(D$124>$G151,1,0),0),0) -> 0 | K151: =IF(SUM(K146:K150)=0,IF(E$122>$F151,IF(E$124>$G151,1,0),0),0) -> 0 | L151: =IF(SUM(L146:L150)=0,IF(F$122>$F151,IF(F$124>$G151,1,0),0),0) -> 0 | M151: =IF(SUM(M146:M150)=0,IF(G$122>$F151,IF(G$124>$G151,1,0),0),0) -> 0
B152: =+B146 -> Develop this segment for current and future profit. | F152: 1.1 | G152: 0 | H152: 1.1 | I152: =IF(SUM(I146:I151)=0,IF(C$122>$F152,IF(C$133>$H152,1,0),0),0) -> 0 | J152: =IF(SUM(J146:J151)=0,IF(D$122>$F152,IF(D$133>$H152,1,0),0),0) -> 0 | K152: =IF(SUM(K146:K151)=0,IF(E$122>$F152,IF(E$133>$H152,1,0),0),0) -> 0 | L152: =IF(SUM(L146:L151)=0,IF(F$122>$F152,IF(F$133>$H152,1,0),0),0) -> 0 | M152: =IF(SUM(M146:M151)=0,IF(G$122>$F152,IF(G$133>$H152,1,0),0),0) -> 1 | R152: Develop this segment for current and future profit.
B153: =+B150 -> Maintain for this segment for current profit. Are there better segments for future profits? | F153: 1.1 | G153: 0 | H153: 0.9 | I153: =IF(SUM(I146:I152)=0,IF(C$122>$F153,IF(C$133>$H153,1,0),0),0) -> 0 | J153: =IF(SUM(J146:J152)=0,IF(D$122>$F153,IF(D$133>$H153,1,0),0),0) -> 0 | K153: =IF(SUM(K146:K152)=0,IF(E$122>$F153,IF(E$133>$H153,1,0),0),0) -> 0 | L153: =IF(SUM(L146:L152)=0,IF(F$122>$F153,IF(F$133>$H153,1,0),0),0) -> 0 | M153: =IF(SUM(M146:M152)=0,IF(G$122>$F153,IF(G$133>$H153,1,0),0),0) -> 0
B154: =+B151 -> Maintain for this segment for current profit, develop another segment for future profit. | F154: 1.1 | G154: 0 | H154: 0 | I154: =IF(SUM(I146:I153)=0,IF(C$122>$F154,1,0),0) -> 0 | J154: =IF(SUM(J146:J153)=0,IF(D$122>$F154,1,0),0) -> 0 | K154: =IF(SUM(K146:K153)=0,IF(E$122>$F154,1,0),0) -> 0 | L154: =IF(SUM(L146:L153)=0,IF(F$122>$F154,1,0),0) -> 0 | M154: =IF(SUM(M146:M153)=0,IF(G$122>$F154,1,0),0) -> 0
B155: Review this segment for current and future profit. Can the Return on Sales be improved? | F155: 0.9 | G155: 1.1 | H155: 1.1 | I155: =IF(SUM(I146:I154)=0,IF(C$122>$F155,IF(C$124>$G155,IF(C$133>$H155,1,0),0),0),0) -> 0 | J155: =IF(SUM(J146:J154)=0,IF(D$122>$F155,IF(D$124>$G155,IF(D$133>$H155,1,0),0),0),0) -> 0 | K155: =IF(SUM(K146:K154)=0,IF(E$122>$F155,IF(E$124>$G155,IF(E$133>$H155,1,0),0),0),0) -> 0 | L155: =IF(SUM(L146:L154)=0,IF(F$122>$F155,IF(F$124>$G155,IF(F$133>$H155,1,0),0),0),0) -> 0 | M155: =IF(SUM(M146:M154)=0,IF(G$122>$F155,IF(G$124>$G155,IF(G$133>$H155,1,0),0),0),0) -> 0
B156: Review this segment for current profit. Can the Return on Sales be improved? Are there better segments for future profit? | F156: 0.9 | G156: 1.1 | H156: 0.9 | I156: =IF(SUM(I146:I155)=0,IF(C$122>$F156,IF(C$124>$G156,IF(C$133>$H156,1,0),0),0),0) -> 0 | J156: =IF(SUM(J146:J155)=0,IF(D$122>$F156,IF(D$124>$G156,IF(D$133>$H156,1,0),0),0),0) -> 0 | K156: =IF(SUM(K146:K155)=0,IF(E$122>$F156,IF(E$124>$G156,IF(E$133>$H156,1,0),0),0),0) -> 0 | L156: =IF(SUM(L146:L155)=0,IF(F$122>$F156,IF(F$124>$G156,IF(F$133>$H156,1,0),0),0),0) -> 0 | M156: =IF(SUM(M146:M155)=0,IF(G$122>$F156,IF(G$124>$G156,IF(G$133>$H156,1,0),0),0),0) -> 0
B157: Review this segment for current profit. Can the Return on Sales be improved? Develop another segment for future profit. | F157: 0.9 | G157: 1.1 | H157: 0 | I157: =IF(SUM(I146:I156)=0,IF(C$122>$F157,IF(C$124>$G157,1,0),0),0) -> 0 | J157: =IF(SUM(J146:J156)=0,IF(D$122>$F157,IF(D$124>$G157,1,0),0),0) -> 0 | K157: =IF(SUM(K146:K156)=0,IF(E$122>$F157,IF(E$124>$G157,1,0),0),0) -> 1 | L157: =IF(SUM(L146:L156)=0,IF(F$122>$F157,IF(F$124>$G157,1,0),0),0) -> 0 | M157: =IF(SUM(M146:M156)=0,IF(G$122>$F157,IF(G$124>$G157,1,0),0),0) -> 0 | P157: Review this segment for current profit. Can the Return on Sales be improved? Develop another segment for future profit.
B158: =+B155 -> Review this segment for current and future profit. Can the Return on Sales be improved? | F158: 0.9 | G158: 0.9 | H158: 1.1 | I158: =IF(SUM(I146:I157)=0,IF(C$122>$F158,IF(C$124>$G158,IF(C$133>$H158,1,0),0),0),0) -> 0 | J158: =IF(SUM(J146:J157)=0,IF(D$122>$F158,IF(D$124>$G158,IF(D$133>$H158,1,0),0),0),0) -> 0 | K158: =IF(SUM(K146:K157)=0,IF(E$122>$F158,IF(E$124>$G158,IF(E$133>$H158,1,0),0),0),0) -> 0 | L158: =IF(SUM(L146:L157)=0,IF(F$122>$F158,IF(F$124>$G158,IF(F$133>$H158,1,0),0),0),0) -> 0 | M158: =IF(SUM(M146:M157)=0,IF(G$122>$F158,IF(G$124>$G158,IF(G$133>$H158,1,0),0),0),0) -> 0
B159: =+B156 -> Review this segment for current profit. Can the Return on Sales be improved? Are there better segments for future profit? | F159: 0.9 | G159: 0.9 | H159: 0.9 | I159: =IF(SUM(I146:I158)=0,IF(C$122>$F159,IF(C$124>$G159,IF(C$133>$H159,1,0),0),0),0) -> 0 | J159: =IF(SUM(J146:J158)=0,IF(D$122>$F159,IF(D$124>$G159,IF(D$133>$H159,1,0),0),0),0) -> 0 | K159: =IF(SUM(K146:K158)=0,IF(E$122>$F159,IF(E$124>$G159,IF(E$133>$H159,1,0),0),0),0) -> 0 | L159: =IF(SUM(L146:L158)=0,IF(F$122>$F159,IF(F$124>$G159,IF(F$133>$H159,1,0),0),0),0) -> 0 | M159: =IF(SUM(M146:M158)=0,IF(G$122>$F159,IF(G$124>$G159,IF(G$133>$H159,1,0),0),0),0) -> 0
B160: =+B157 -> Review this segment for current profit. Can the Return on Sales be improved? Develop another segment for future profit. | F160: 0.9 | G160: 0.9 | H160: 0 | I160: =IF(SUM(I146:I159)=0,IF(C$122>$F160,IF(C$124>$G160,1,0),0),0) -> 0 | J160: =IF(SUM(J146:J159)=0,IF(D$122>$F160,IF(D$124>$G160,1,0),0),0) -> 0 | K160: =IF(SUM(K146:K159)=0,IF(E$122>$F160,IF(E$124>$G160,1,0),0),0) -> 0 | L160: =IF(SUM(L146:L159)=0,IF(F$122>$F160,IF(F$124>$G160,1,0),0),0) -> 0 | M160: =IF(SUM(M146:M159)=0,IF(G$122>$F160,IF(G$124>$G160,1,0),0),0) -> 0
B161: =+B155 -> Review this segment for current and future profit. Can the Return on Sales be improved? | F161: 0.9 | G161: 0 | H161: 1.1 | I161: =IF(SUM(I146:I160)=0,IF(C$122>$F161,IF(C$133>$H161,1,0),0),0) -> 0 | J161: =IF(SUM(J146:J160)=0,IF(D$122>$F161,IF(D$133>$H161,1,0),0),0) -> 0 | K161: =IF(SUM(K146:K160)=0,IF(E$122>$F161,IF(E$133>$H161,1,0),0),0) -> 0 | L161: =IF(SUM(L146:L160)=0,IF(F$122>$F161,IF(F$133>$H161,1,0),0),0) -> 0 | M161: =IF(SUM(M146:M160)=0,IF(G$122>$F161,IF(G$133>$H161,1,0),0),0) -> 0
B162: =+B156 -> Review this segment for current profit. Can the Return on Sales be improved? Are there better segments for future profit? | F162: 0.9 | G162: 0 | H162: 0.9 | I162: =IF(SUM(I146:I161)=0,IF(C$122>$F162,IF(C$133>$H162,1,0),0),0) -> 0 | J162: =IF(SUM(J146:J161)=0,IF(D$122>$F162,IF(D$133>$H162,1,0),0),0) -> 0 | K162: =IF(SUM(K146:K161)=0,IF(E$122>$F162,IF(E$133>$H162,1,0),0),0) -> 0 | L162: =IF(SUM(L146:L161)=0,IF(F$122>$F162,IF(F$133>$H162,1,0),0),0) -> 0 | M162: =IF(SUM(M146:M161)=0,IF(G$122>$F162,IF(G$133>$H162,1,0),0),0) -> 0 | O162: =IF(J162=1,$B162,"") ->  | P162: =IF(K162=1,$B162,"") ->  | Q162: =IF(L162=1,$B162,"") ->  | R162: =IF(M162=1,$B162,"") -> 
B163: =+B157 -> Review this segment for current profit. Can the Return on Sales be improved? Develop another segment for future profit. | F163: 0.9 | G163: 0 | H163: 0 | I163: =IF(SUM(I146:I162)=0,IF(C$122>$F163,1,0),0) -> 0 | J163: =IF(SUM(J146:J162)=0,IF(D$122>$F163,1,0),0) -> 0 | K163: =IF(SUM(K146:K162)=0,IF(E$122>$F163,1,0),0) -> 0 | L163: =IF(SUM(L146:L162)=0,IF(F$122>$F163,1,0),0) -> 0 | M163: =IF(SUM(M146:M162)=0,IF(G$122>$F163,1,0),0) -> 0
B164: Divest of this segment unless Return on Sales can be substantially improved, if so develop for future profit. | F164: 0 | G164: 1.1 | H164: 1.1 | I164: =IF(SUM(I146:I163)=0,IF(C$124>$G164,IF(C$133>$H164,1,0),0),0) -> 0 | J164: =IF(SUM(J146:J163)=0,IF(D$124>$G164,IF(D$133>$H164,1,0),0),0) -> 0 | K164: =IF(SUM(K146:K163)=0,IF(E$124>$G164,IF(E$133>$H164,1,0),0),0) -> 0 | L164: =IF(SUM(L146:L163)=0,IF(F$124>$G164,IF(F$133>$H164,1,0),0),0) -> 0 | M164: =IF(SUM(M146:M163)=0,IF(G$124>$G164,IF(G$133>$H164,1,0),0),0) -> 0
B165: Divest of this segment unless Return on Sales can be substantially improved. Are there better segments for future profit. | F165: 0 | G165: 1.1 | H165: 0.9 | I165: =IF(SUM(I146:I164)=0,IF(C$124>$G165,IF(C$133>$H165,1,0),0),0) -> 0 | J165: =IF(SUM(J146:J164)=0,IF(D$124>$G165,IF(D$133>$H165,1,0),0),0) -> 0 | K165: =IF(SUM(K146:K164)=0,IF(E$124>$G165,IF(E$133>$H165,1,0),0),0) -> 0 | L165: =IF(SUM(L146:L164)=0,IF(F$124>$G165,IF(F$133>$H165,1,0),0),0) -> 0 | M165: =IF(SUM(M146:M164)=0,IF(G$124>$G165,IF(G$133>$H165,1,0),0),0) -> 0
B166: Divest of this segment unless current Return on Sales can be substantially improved, develop another segment for future profit. | F166: 0 | G166: 1.1 | H166: 0 | I166: =IF(SUM(I146:I165)=0,IF(C$124>$G166,IF(C$133>$H166,1,0),0),0) -> 0 | J166: =IF(SUM(J146:J165)=0,IF(D$124>$G166,IF(D$133>$H166,1,0),0),0) -> 0 | K166: =IF(SUM(K146:K165)=0,IF(E$124>$G166,IF(E$133>$H166,1,0),0),0) -> 0 | L166: =IF(SUM(L146:L165)=0,IF(F$124>$G166,IF(F$133>$H166,1,0),0),0) -> 0 | M166: =IF(SUM(M146:M165)=0,IF(G$124>$G166,IF(G$133>$H166,1,0),0),0) -> 0
B167: =+B164 -> Divest of this segment unless Return on Sales can be substantially improved, if so develop for future profit. | F167: 0 | G167: 0.9 | H167: 1.1 | I167: =IF(SUM(I146:I166)=0,IF(C$124>$G167,IF(C$133>$H167,1,0),0),0) -> 0 | J167: =IF(SUM(J146:J166)=0,IF(D$124>$G167,IF(D$133>$H167,1,0),0),0) -> 0 | K167: =IF(SUM(K146:K166)=0,IF(E$124>$G167,IF(E$133>$H167,1,0),0),0) -> 0 | L167: =IF(SUM(L146:L166)=0,IF(F$124>$G167,IF(F$133>$H167,1,0),0),0) -> 0 | M167: =IF(SUM(M146:M166)=0,IF(G$124>$G167,IF(G$133>$H167,1,0),0),0) -> 0
B168: =+B165 -> Divest of this segment unless Return on Sales can be substantially improved. Are there better segments for future profit. | F168: 0 | G168: 0.9 | H168: 0.9 | I168: =IF(SUM(I146:I167)=0,IF(C$124>$G168,IF(C$133>$H168,1,0),0),0) -> 0 | J168: =IF(SUM(J146:J167)=0,IF(D$124>$G168,IF(D$133>$H168,1,0),0),0) -> 0 | K168: =IF(SUM(K146:K167)=0,IF(E$124>$G168,IF(E$133>$H168,1,0),0),0) -> 0 | L168: =IF(SUM(L146:L167)=0,IF(F$124>$G168,IF(F$133>$H168,1,0),0),0) -> 0 | M168: =IF(SUM(M146:M167)=0,IF(G$124>$G168,IF(G$133>$H168,1,0),0),0) -> 0
B169: =+B166 -> Divest of this segment unless current Return on Sales can be substantially improved, develop another segment for future profit. | F169: 0 | G169: 0.9 | H169: 0 | I169: =IF(SUM(I146:I168)=0,IF(C$124>$G169,1,0),0) -> 0 | J169: =IF(SUM(J146:J168)=0,IF(D$124>$G169,1,0),0) -> 0 | K169: =IF(SUM(K146:K168)=0,IF(E$124>$G169,1,0),0) -> 0 | L169: =IF(SUM(L146:L168)=0,IF(F$124>$G169,1,0),0) -> 0 | M169: =IF(SUM(M146:M168)=0,IF(G$124>$G169,1,0),0) -> 0
B170: =+B164 -> Divest of this segment unless Return on Sales can be substantially improved, if so develop for future profit. | F170: 0 | G170: 0 | H170: 1.1 | I170: =IF(SUM(I146:I169)=0,IF(C$133>$H170,1,0),0) -> 0 | J170: =IF(SUM(J146:J169)=0,IF(D$133>$H170,1,0),0) -> 0 | K170: =IF(SUM(K146:K169)=0,IF(E$133>$H170,1,0),0) -> 0 | L170: =IF(SUM(L146:L169)=0,IF(F$133>$H170,1,0),0) -> 0 | M170: =IF(SUM(M146:M169)=0,IF(G$133>$H170,1,0),0) -> 0
B171: =+B165 -> Divest of this segment unless Return on Sales can be substantially improved. Are there better segments for future profit. | F171: 0 | G171: 0 | H171: 0.9 | I171: =IF(SUM(I146:I170)=0,IF(C$133>$H171,1,0),0) -> 0 | J171: =IF(SUM(J146:J170)=0,IF(D$133>$H171,1,0),0) -> 0 | K171: =IF(SUM(K146:K170)=0,IF(E$133>$H171,1,0),0) -> 0 | L171: =IF(SUM(L146:L170)=0,IF(F$133>$H171,1,0),0) -> 1 | M171: =IF(SUM(M146:M170)=0,IF(G$133>$H171,1,0),0) -> 0 | Q171: Divest of this segment unless Return on Sales can be substantially improved. Are there better segments for future profit.
B172: =+B166 -> Divest of this segment unless current Return on Sales can be substantially improved, develop another segment for future profit. | F172: 0 | G172: 0 | H172: 0 | I172: =IF(SUM(I146:I171)=0,1,0) -> 0 | J172: =IF(SUM(J146:J171)=0,1,0) -> 1 | K172: =IF(SUM(K146:K171)=0,1,0) -> 0 | L172: =IF(SUM(L146:L171)=0,1,0) -> 0 | M172: =IF(SUM(M146:M171)=0,1,0) -> 0 | O172: Divest of this segment unless current Return on Sales can be substantially improved, develop another segment for future profit.
N173: =CONCATENATE(N146,N147,N148,N149,N150,N151,N152,N153,N154,N155,N156,N157,N158,N159,N160,N161,N162,N163,N164,N165,N166,N167,N168,N169,N170,N171,N172) -> Develop this segment for current and future profit. | O173: =CONCATENATE(O146,O147,O148,O149,O150,O151,O152,O153,O154,O155,O156,O157,O158,O159,O160,O161,O162,O163,O164,O165,O166,O167,O168,O169,O170,O171,O172) -> Divest of this segment unless current Return on Sales can be substantially improved, develop another segment for future profit. | P173: =CONCATENATE(P146,P147,P148,P149,P150,P151,P152,P153,P154,P155,P156,P157,P158,P159,P160,P161,P162,P163,P164,P165,P166,P167,P168,P169,P170,P171,P172) -> Review this segment for current profit. Can the Return on Sales be improved? Develop another segment for future profit. | Q173: =CONCATENATE(Q146,Q147,Q148,Q149,Q150,Q151,Q152,Q153,Q154,Q155,Q156,Q157,Q158,Q159,Q160,Q161,Q162,Q163,Q164,Q165,Q166,Q167,Q168,Q169,Q170,Q171,Q172) -> Divest of this segment unless Return on Sales can be substantially improved. Are there better segments for future profit. | R173: =CONCATENATE(R146,R147,R148,R149,R150,R151,R152,R153,R154,R155,R156,R157,R158,R159,R160,R161,R162,R163,R164,R165,R166,R167,R168,R169,R170,R171,R172) -> Develop this segment for current and future profit.
B179: =+'Input Product Group Data'!B9 -> Product Groups | C179: =+'Input Product Group Data'!D9 -> Product Group 1 | D179: =+'Input Product Group Data'!E9 -> Product Group 2 | E179: =+'Input Product Group Data'!F9 -> Product Group 3 | F179: =+'Input Product Group Data'!G9 -> Product Group 4 | G179: =+'Input Product Group Data'!H9 -> Product Group 5 | H179: =+'Input Product Group Data'!I9 -> Total/ Average
J180: =+H179 -> Total/ Average | N180: Input
B181: Monetary | C181: =IF('Input Product Group Data'!$C11='Input Product Group Data'!$B89,'Input Product Group Data'!D11,'Input Product Group Data'!D12) -> 165000 | D181: =IF('Input Product Group Data'!$C11='Input Product Group Data'!$B89,'Input Product Group Data'!E11,'Input Product Group Data'!E12) -> 70000 | E181: =IF('Input Product Group Data'!$C11='Input Product Group Data'!$B89,'Input Product Group Data'!F11,'Input Product Group Data'!F12) -> 120000 | F181: =IF('Input Product Group Data'!$C11='Input Product Group Data'!$B89,'Input Product Group Data'!G11,'Input Product Group Data'!G12) -> 95000 | G181: =IF('Input Product Group Data'!$C11='Input Product Group Data'!$B89,'Input Product Group Data'!H11,'Input Product Group Data'!H12) -> 50000 | H181: =SUM(C181:G181) -> 500000 | J181: Number of Sales | L181: 0 | M181: =+N181*0.5 -> 5787.657251 | N181: =+H$183 -> 11575.3145 | O181: =+N181*1.5 -> 17362.97175 | P181: =+N181*2 -> 23150.629
B182: Percent | C182: =+C181/$H$181 -> 0.33 | D182: 0.14 | E182: 0.24 | F182: 0.19 | G182: 0.1 | H182: 1 | J182: =+B$48 -> Revenue | L182: =+L181*L183 -> 0 | M182: =+M181*M183 -> 250000 | N182: =+H$181 -> 500000 | O182: =+O181*O183 -> 750000 | P182: =+P181*P183 -> 1000000
B183: Num Sales | C183: =IF('Input Product Group Data'!$C13='Input Product Group Data'!$B92,'Input Product Group Data'!D13,'Input Product Group Data'!D14) -> 5500 | D183: =IF('Input Product Group Data'!$C13='Input Product Group Data'!$B92,'Input Product Group Data'!E13,'Input Product Group Data'!E14) -> 2058.823529 | E183: =IF('Input Product Group Data'!$C13='Input Product Group Data'!$B92,'Input Product Group Data'!F13,'Input Product Group Data'!F14) -> 2181.818182 | F183: =IF('Input Product Group Data'!$C13='Input Product Group Data'!$B92,'Input Product Group Data'!G13,'Input Product Group Data'!G14) -> 1461.538462 | G183: =IF('Input Product Group Data'!$C13='Input Product Group Data'!$B92,'Input Product Group Data'!H13,'Input Product Group Data'!H14) -> 373.1343284 | H183: =SUM(C183:G183) -> 11575.3145 | J183: Unit Sales Price | L183: =+$N183 -> 43.19537063 | M183: =+$N183 -> 43.19537063 | N183: =+N182/N181 -> 43.19537063 | O183: =+$N183 -> 43.19537063 | P183: =+$N183 -> 43.19537063
B184: Percent | C184: =+C183/$H$183 -> 0.4751490769 | D184: 0.1778632908 | E184: 0.18848889 | F184: 0.1262633911 | G184: 0.03223535121 | H184: 1 | J184: =+B$86 -> Total Variable Costs | L184: =+L185*L182 -> 0 | M184: =+M185*M182 -> 155000 | N184: =+H$218 -> 310000 | O184: =+O185*O182 -> 465000 | P184: =+P185*P182 -> 620000
B185: Price | C185: =+C181/C183 -> 30 | D185: 34 | E185: 55 | F185: 65 | G185: 134 | H185: 43.19537063 | J185: =+B$87 -> % of Segment Revenue | L185: =+$N185 -> 0.62 | M185: =+$N185 -> 0.62 | N185: =+N184/N182 -> 0.62 | O185: =+$N185 -> 0.62 | P185: =+$N185 -> 0.62
B186: =+'Input Product Group Data'!B15 -> Relative Indicator base | C186: =+'Input Product Group Data'!C15 -> Transaction | J186: Variable COS per Unit | L186: =+L184/L181 ->  | M186: =+M184/M181 -> 26.78112979 | N186: =+N184/N181 -> 26.78112979 | O186: =+O184/O181 -> 26.78112979 | P186: =+P184/P181 -> 26.78112979
B187: =+'Input Product Group Data'!B16:C16 -> Variable Costs | J187: =+B$119 -> Total Fixed Costs | L187: =+$N187 -> 130000 | M187: =+$N187 -> 130000 | N187: =+H$251 -> 130000 | O187: =+$N187 -> 130000 | P187: =+$N187 -> 130000
B188: =+'Input Product Group Data'!B17:C17 -> Materials & Supplies | J188: Total Costs | L188: =+L187+L184 -> 130000 | M188: =+M187+M184 -> 285000 | N188: =+N187+N184 -> 440000 | O188: =+O187+O184 -> 595000 | P188: =+P187+P184 -> 750000
B189: Indicator | C189: =+'Input Product Group Data'!D17 -> 70 | D189: =+'Input Product Group Data'!E17 -> 120 | E189: =+'Input Product Group Data'!F17 -> 110 | F189: =+'Input Product Group Data'!G17 -> 68 | G189: =+'Input Product Group Data'!H17 -> 90 | H189: =AVERAGE(C189:G189) -> 91.6 | J189: =+B$120 -> Operating Surplus/Profit | L189: =+L182-L184-L187 -> -130000 | M189: =+M182-M184-M187 -> -35000 | N189: =+N182-N184-N187 -> 60000 | O189: =+O182-O184-O187 -> 155000 | P189: =+P182-P184-P187 -> 250000
B190: Effort | C190: =IF('Input Product Group Data'!$C15='Input Product Group Data'!$B93,C189/$H189*C$182,+C189/$H189*C$184) -> 0.3631051898 | D190: =IF('Input Product Group Data'!$C15='Input Product Group Data'!$B93,D189/$H189*D$182,+D189/$H189*D$184) -> 0.2330086779 | E190: =IF('Input Product Group Data'!$C15='Input Product Group Data'!$B93,E189/$H189*E$182,+E189/$H189*E$184) -> 0.2263512871 | F190: =IF('Input Product Group Data'!$C15='Input Product Group Data'!$B93,F189/$H189*F$182,+F189/$H189*F$184) -> 0.09373264839 | G190: =IF('Input Product Group Data'!$C15='Input Product Group Data'!$B93,G189/$H189*G$182,+G189/$H189*G$184) -> 0.03167228831 | H190: =SUM(C190:G190) -> 0.9478700915 | J190: =+B$121 -> Return on Sales | L190: =+IF(L182=0,"N/A",L189/L182) -> N/A | M190: =+IF(M182=0,"N/A",M189/M182) -> -0.14 | N190: =+IF(N182=0,"N/A",N189/N182) -> 0.12 | O190: =+IF(O182=0,"N/A",O189/O182) -> 0.2066666667 | P190: =+IF(P182=0,"N/A",P189/P182) -> 0.25
B191: Expense | C191: =+C190/$H190*$C8 -> 3830.748465 | D191: =+D190/$H190*$C8 -> 2458.234309 | E191: =+E190/$H190*$C8 -> 2387.999043 | F191: =+F190/$H190*$C8 -> 988.8765267 | G191: =+G190/$H190*$C8 -> 334.1416571 | H191: =SUM(C191:G191) -> 10000 | J191: Breakeven Point Revenue | L191: =+L187/(1-L185) -> 342105.2632 | M191: =+M187/(1-M185) -> 342105.2632 | N191: =+N187/(1-N185) -> 342105.2632 | O191: =+O187/(1-O185) -> 342105.2632 | P191: =+P187/(1-P185) -> 342105.2632
B192: % of Segment Revenue | C192: =+C191/C$49 -> 0.0255383231 | D192: 0.03277645745 | E192: 0.01910399234 | F192: 0.008598926319 | G192: 0.009546904489 | H192: 0.02 | J192: Breakeven Point Number of Sales | L192: =+L191/L183 -> 7919.952027 | M192: =+M191/M183 -> 7919.952027 | N192: =+N191/N183 -> 7919.952027 | O192: =+O191/O183 -> 7919.952027 | P192: =+P191/P183 -> 7919.952027
B193: =+'Input Product Group Data'!B18:C18 -> Labor excluding Owner
B194: =+B$57 -> Indicator | C194: =+'Input Product Group Data'!D18 -> 110 | D194: =+'Input Product Group Data'!E18 -> 100 | E194: =+'Input Product Group Data'!F18 -> 123 | F194: =+'Input Product Group Data'!G18 -> 87 | G194: =+'Input Product Group Data'!H18 -> 90 | H194: =AVERAGE(C194:G194) -> 102 | J194: =+C$179 -> Product Group 1 | N194: Input
B195: =+B$58 -> Effort | C195: =IF('Input Product Group Data'!$C15='Input Product Group Data'!$B93,C194/$H194*C$182,+C194/$H194*C$184) -> 0.5124156712 | D195: =IF('Input Product Group Data'!$C15='Input Product Group Data'!$B93,D194/$H194*D$182,+D194/$H194*D$184) -> 0.1743757753 | E195: =IF('Input Product Group Data'!$C15='Input Product Group Data'!$B93,E194/$H194*E$182,+E194/$H194*E$184) -> 0.2272954262 | F195: =IF('Input Product Group Data'!$C15='Input Product Group Data'!$B93,F194/$H194*F$182,+F194/$H194*F$184) -> 0.1076952453 | G195: =IF('Input Product Group Data'!$C15='Input Product Group Data'!$B93,G194/$H194*G$182,+G194/$H194*G$184) -> 0.02844295695 | H195: =SUM(C195:G195) -> 1.050225075 | J195: Number of Sales | L195: 0 | M195: =+N195*0.5 -> 2750 | N195: =+C$183 -> 5500 | O195: =+N195*1.5 -> 8250 | P195: =+N195*2 -> 11000
B196: =+B$59 -> Expense | C196: =+C195/$H195*$C10 -> 97582.06758 | D196: =+D195/$H195*$C10 -> 33207.31517 | E196: =+E195/$H195*$C10 -> 43285.08843 | F196: =+F195/$H195*$C10 -> 20508.98381 | G196: =+G195/$H195*$C10 -> 5416.545012 | H196: =SUM(C196:G196) -> 200000 | J196: =+B$48 -> Revenue | L196: =+L195*L197 -> 0 | M196: =+M195*M197 -> 82500 | N196: =+C$181 -> 165000 | O196: =+O195*O197 -> 247500 | P196: =+P195*P197 -> 330000
B197: =+B$60 -> % of Segment Revenue | C197: =+C196/C$49 -> 0.6505471172 | D197: 0.4427642023 | E197: 0.3462807074 | F197: 0.1783389897 | G197: 0.1547584289 | H197: 0.4 | J197: Unit Sales Price | L197: =+$N197 -> 30 | M197: =+$N197 -> 30 | N197: =+N196/N195 -> 30 | O197: =+$N197 -> 30 | P197: =+$N197 -> 30
B198: =+'Input Product Group Data'!B19:C19 -> Labor Owner | J198: =+B$86 -> Total Variable Costs | L198: =+L199*L196 -> 0 | M198: =+M199*M196 -> 69397.20317 | N198: =+C$218 -> 138794.4063 | O198: =+O199*O196 -> 208191.6095 | P198: =+P199*P196 -> 277588.8127
B199: =+B$57 -> Indicator | C199: =+'Input Product Group Data'!D19 -> 135 | D199: =+'Input Product Group Data'!E19 -> 100 | E199: =+'Input Product Group Data'!F19 -> 110 | F199: =+'Input Product Group Data'!G19 -> 135 | G199: =+'Input Product Group Data'!H19 -> 70 | H199: =AVERAGE(C199:G199) -> 110 | J199: =+B$87 -> % of Segment Revenue | L199: =+$N199 -> 0.8411782202 | M199: =+$N199 -> 0.8411782202 | N199: =+N198/N196 -> 0.8411782202 | O199: =+$N199 -> 0.8411782202 | P199: =+$N199 -> 0.8411782202
B200: =+B$58 -> Effort | C200: =IF('Input Product Group Data'!$C15='Input Product Group Data'!$B93,C199/$H199*C$182,+C199/$H199*C$184) -> 0.5831375035 | D200: =IF('Input Product Group Data'!$C15='Input Product Group Data'!$B93,D199/$H199*D$182,+D199/$H199*D$184) -> 0.1616939007 | E200: =IF('Input Product Group Data'!$C15='Input Product Group Data'!$B93,E199/$H199*E$182,+E199/$H199*E$184) -> 0.18848889 | F200: =IF('Input Product Group Data'!$C15='Input Product Group Data'!$B93,F199/$H199*F$182,+F199/$H199*F$184) -> 0.1549596163 | G200: =IF('Input Product Group Data'!$C15='Input Product Group Data'!$B93,G199/$H199*G$182,+G199/$H199*G$184) -> 0.02051340532 | H200: =SUM(C200:G200) -> 1.108793316 | J200: Variable COS per Unit | L200: =+L198/L195 ->  | M200: =+M198/M195 -> 25.23534661 | N200: =+N198/N195 -> 25.23534661 | O200: =+O198/O195 -> 25.23534661 | P200: =+P198/P195 -> 25.23534661
B201: =+B$59 -> Expense | C201: =+C200/$H200*$C12 -> 26296.04161 | D201: =+D200/$H200*$C12 -> 7291.435583 | E201: =+E200/$H200*$C12 -> 8499.730622 | F201: =+F200/$H200*$C12 -> 6987.75931 | G201: =+G200/$H200*$C12 -> 925.0328725 | H201: =SUM(C201:G201) -> 50000 | J201: =+B$119 -> Total Fixed Costs | L201: =+$N201 -> 43993.3469 | M201: =+$N201 -> 43993.3469 | N201: =+C$251 -> 43993.3469 | O201: =+$N201 -> 43993.3469 | P201: =+$N201 -> 43993.3469
B202: =+B$60 -> % of Segment Revenue | C202: =+C201/C$49 -> 0.1753069441 | D202: 0.0972191411 | E202: 0.06799784498 | F202: 0.06076312443 | G202: 0.02642951064 | H202: 0.1 | J202: Total Costs | L202: =+L201+L198 -> 43993.3469 | M202: =+M201+M198 -> 113390.5501 | N202: =+N201+N198 -> 182787.7532 | O202: =+O201+O198 -> 252184.9564 | P202: =+P201+P198 -> 321582.1596
B203: =+'Input Product Group Data'!B20:C20 -> Distribution | J203: =+B$120 -> Operating Surplus/Profit | L203: =+L196-L198-L201 -> -43993.3469 | M203: =+M196-M198-M201 -> -30890.55007 | N203: =+N196-N198-N201 -> -17787.75324 | O203: =+O196-O198-O201 -> -4684.956409 | P203: =+P196-P198-P201 -> 8417.840422
B204: =+B$57 -> Indicator | C204: =+'Input Product Group Data'!D20 -> 90 | D204: =+'Input Product Group Data'!E20 -> 150 | E204: =+'Input Product Group Data'!F20 -> 100 | F204: =+'Input Product Group Data'!G20 -> 90 | G204: =+'Input Product Group Data'!H20 -> 85 | H204: =AVERAGE(C204:G204) -> 103 | J204: =+B$121 -> Return on Sales | L204: =+IF(L196=0,"N/A",L203/L196) -> N/A | M204: =+IF(M196=0,"N/A",M203/M196) -> -0.3744309099 | N204: =+IF(N196=0,"N/A",N203/N196) -> -0.1078045651 | O204: =+IF(O196=0,"N/A",O203/O196) -> -0.0189291168 | P204: =+IF(P196=0,"N/A",P203/P196) -> 0.02550860734
B205: =+B$58 -> Effort | C205: =IF('Input Product Group Data'!$C15='Input Product Group Data'!$B93,C204/$H204*C$182,+C204/$H204*C$184) -> 0.4151788051 | D205: =IF('Input Product Group Data'!$C15='Input Product Group Data'!$B93,D204/$H204*D$182,+D204/$H204*D$184) -> 0.2590242099 | E205: =IF('Input Product Group Data'!$C15='Input Product Group Data'!$B93,E204/$H204*E$182,+E204/$H204*E$184) -> 0.1829989223 | F205: =IF('Input Product Group Data'!$C15='Input Product Group Data'!$B93,F204/$H204*F$182,+F204/$H204*F$184) -> 0.1103272349 | G205: =IF('Input Product Group Data'!$C15='Input Product Group Data'!$B93,G204/$H204*G$182,+G204/$H204*G$184) -> 0.02660198887 | H205: =SUM(C205:G205) -> 0.9941311611 | J205: Breakeven Point Revenue | L205: =+L201/(1-L199) -> 276998.1986 | M205: =+M201/(1-M199) -> 276998.1986 | N205: =+N201/(1-N199) -> 276998.1986 | O205: =+O201/(1-O199) -> 276998.1986 | P205: =+P201/(1-P199) -> 276998.1986
B206: =+B$59 -> Expense | C206: =+C205/$H205*$C14 -> 8352.596142 | D206: =+D205/$H205*$C14 -> 5211.067112 | E206: =+E205/$H205*$C14 -> 3681.585076 | F206: =+F205/$H205*$C14 -> 2219.571003 | G206: =+G205/$H205*$C14 -> 535.1806664 | H206: =SUM(C206:G206) -> 20000 | J206: Breakeven Point Number of Sales | L206: =+L205/L197 -> 9233.273288 | M206: =+M205/M197 -> 9233.273288 | N206: =+N205/N197 -> 9233.273288 | O206: =+O205/O197 -> 9233.273288 | P206: =+P205/P197 -> 9233.273288
B207: =+B$60 -> % of Segment Revenue | C207: =+C206/C$49 -> 0.05568397428 | D207: 0.06948089483 | E207: 0.02945268061 | F207: 0.01930061742 | G207: 0.01529087618 | H207: 0.04
B208: =+'Input Product Group Data'!B21:C21 -> Marketing | J208: =+D$179 -> Product Group 2 | N208: Input
B209: =+B$57 -> Indicator | C209: =+'Input Product Group Data'!D21 -> 50 | D209: =+'Input Product Group Data'!E21 -> 100 | E209: =+'Input Product Group Data'!F21 -> 150 | F209: =+'Input Product Group Data'!G21 -> 110 | G209: =+'Input Product Group Data'!H21 -> 100 | H209: =AVERAGE(C209:G209) -> 102 | J209: Number of Sales | L209: 0 | M209: =+N209*0.5 -> 1029.411765 | N209: =+D$183 -> 2058.823529 | O209: =+N209*1.5 -> 3088.235294 | P209: =+N209*2 -> 4117.647059
B210: =+B$58 -> Effort | C210: =IF('Input Product Group Data'!$C15='Input Product Group Data'!$B93,C209/$H209*C$182,+C209/$H209*C$184) -> 0.2329162142 | D210: =IF('Input Product Group Data'!$C15='Input Product Group Data'!$B93,D209/$H209*D$182,+D209/$H209*D$184) -> 0.1743757753 | E210: =IF('Input Product Group Data'!$C15='Input Product Group Data'!$B93,E209/$H209*E$182,+E209/$H209*E$184) -> 0.2771895441 | F210: =IF('Input Product Group Data'!$C15='Input Product Group Data'!$B93,F209/$H209*F$182,+F209/$H209*F$184) -> 0.1361664021 | G210: =IF('Input Product Group Data'!$C15='Input Product Group Data'!$B93,G209/$H209*G$182,+G209/$H209*G$184) -> 0.0316032855 | H210: =SUM(C210:G210) -> 0.8522512212 | J210: =+B$48 -> Revenue | L210: =+L209*L211 -> 0 | M210: =+M209*M211 -> 35000 | N210: =+D$181 -> 70000 | O210: =+O209*O211 -> 105000 | P210: =+P209*P211 -> 140000
B211: =+B$59 -> Expense | C211: =+C210/$H210*$C16 -> 2732.952542 | D211: =+D210/$H210*$C16 -> 2046.060727 | E211: =+E210/$H210*$C16 -> 3252.439389 | F211: =+F210/$H210*$C16 -> 1597.726102 | G211: =+G210/$H210*$C16 -> 370.8212405 | H211: =SUM(C211:G211) -> 10000 | J211: Unit Sales Price | L211: =+$N211 -> 34 | M211: =+$N211 -> 34 | N211: =+N210/N209 -> 34 | O211: =+$N211 -> 34 | P211: =+$N211 -> 34
B212: =+B$60 -> % of Segment Revenue | C212: =+C211/C$49 -> 0.01821968361 | D212: 0.02728080969 | E212: 0.02601951511 | F212: 0.01389327045 | G212: 0.01059489258 | H212: 0.02 | J212: =+B$86 -> Total Variable Costs | L212: =+L213*L210 -> 0 | M212: =+M213*M210 -> 25107.05645 | N212: =+D$218 -> 50214.1129 | O212: =+O213*O210 -> 75321.16935 | P212: =+P213*P210 -> 100428.2258
B213: =+'Input Product Group Data'!B22:C22 -> Other | J213: =+B$87 -> % of Segment Revenue | L213: =+$N213 -> 0.71734447 | M213: =+$N213 -> 0.71734447 | N213: =+N212/N210 -> 0.71734447 | O213: =+$N213 -> 0.71734447 | P213: =+$N213 -> 0.71734447
... 101 more rows

Sheet Scratch (hidden)
E41: =SUM(E42:E46) -> 310
B42: =1 -> 1 | C42: p | D42: =IFERROR(CODE(C42),0) -> 112 | E42: =B42*D42 -> 112
B43: =B42+1 -> 2 | C43: c | D43: =IFERROR(CODE(C43),0) -> 99 | E43: =B43*D43 -> 198
B44: 3 | D44: 0 | E44: 0
B45: 4 | D45: 0 | E45: 0
B46: 5 | D46: 0 | E46: 0
B50: =IF(Scratch!B55=TRUE,"Licensed to "&Welcome!C11, Welcome!C13&" In evaluation mode functionality is limited.") -> In evaluation mode functionality is limited.
B52: Locked | C52: 500000
B53: =IFERROR(AND(ISTEXT(Welcome!C18),LEN(Welcome!C18)>6),FALSE) -> FALSE | D53: emall len >6
B54: =IFERROR(AND(ISNUMBER(INT(Welcome!C19)),LEN(Welcome!C19)>8),FALSE) -> FALSE | C54: =IFERROR(Welcome!C19/Scratch!E57/E41,FALSE) -> FALSE | D54: code len>8 | E54: yyyymmdd=code/emailchsum/i
B55: =IFERROR(AND(ISNUMBER(C54),LEN(C54)=8,TODAY()<C55+7),FALSE) -> FALSE | C55: =IFERROR(DATE(MID(C54,1,4),MID(C54,5,2),MID(C54,7,2)),FALSE) -> FALSE | E55: yyyymmdd len=8 | G55: IF(ISNUMBER(C55),IF(C55>TODAY()+3650,2,IF(C55>TODAY()-2,1,0)),0)
C56: =IF(ISNUMBER(C55),IF(C55>TODAY()+3650,2,IF(C55>TODAY()-2,1,0)),0) -> 0 | D56: status | E56: >today+36500days=2 | J56: =I56*J57*E41 -> 0
E57: =SUM(E58:E107) -> 0 | J57: =SUM(J58:J107) -> 0
B58: =1 -> 1 | C58: =MID(Welcome!$C$18,B58,1) ->  | D58: =IFERROR(CODE(C58),0) -> 0 | E58: =B58*D58 -> 0 | G58: =1 -> 1 | H58: =MID($G$56,G58,1) ->  | I58: =IFERROR(CODE(H58),0) -> 0 | J58: =G58*I58 -> 0
B59: =B58+1 -> 2 | C59: =MID(Welcome!$C$18,B59,1) ->  | D59: 0 | E59: 0 | G59: =G58+1 -> 2 | H59: =MID($G$56,G59,1) ->  | I59: 0 | J59: 0
B60: 3 | C60: =MID(Welcome!$C$18,B60,1) ->  | D60: 0 | E60: 0 | G60: 3 | I60: 0 | J60: 0
B61: 4 | C61: =MID(Welcome!$C$18,B61,1) ->  | D61: 0 | E61: 0 | G61: 4 | I61: 0 | J61: 0
B62: 5 | C62: =MID(Welcome!$C$18,B62,1) ->  | D62: 0 | E62: 0 | G62: 5 | I62: 0 | J62: 0
B63: 6 | C63: =MID(Welcome!$C$18,B63,1) ->  | D63: 0 | E63: 0 | G63: 6 | I63: 0 | J63: 0
B64: 7 | C64: =MID(Welcome!$C$18,B64,1) ->  | D64: 0 | E64: 0 | G64: 7 | I64: 0 | J64: 0
B65: 8 | C65: =MID(Welcome!$C$18,B65,1) ->  | D65: 0 | E65: 0 | G65: 8 | I65: 0 | J65: 0
B66: 9 | C66: =MID(Welcome!$C$18,B66,1) ->  | D66: 0 | E66: 0 | G66: 9 | I66: 0 | J66: 0
B67: 10 | C67: =MID(Welcome!$C$18,B67,1) ->  | D67: 0 | E67: 0 | G67: 10 | I67: 0 | J67: 0
B68: 11 | C68: =MID(Welcome!$C$18,B68,1) ->  | D68: 0 | E68: 0 | G68: 11 | I68: 0 | J68: 0
B69: 12 | C69: =MID(Welcome!$C$18,B69,1) ->  | D69: 0 | E69: 0 | G69: 12 | I69: 0 | J69: 0
B70: 13 | C70: =MID(Welcome!$C$18,B70,1) ->  | D70: 0 | E70: 0 | G70: 13 | I70: 0 | J70: 0
B71: 14 | C71: =MID(Welcome!$C$18,B71,1) ->  | D71: 0 | E71: 0 | G71: 14 | I71: 0 | J71: 0
B72: 15 | C72: =MID(Welcome!$C$18,B72,1) ->  | D72: 0 | E72: 0 | G72: 15 | I72: 0 | J72: 0
B73: 16 | C73: =MID(Welcome!$C$18,B73,1) ->  | D73: 0 | E73: 0 | G73: 16 | I73: 0 | J73: 0
B74: 17 | C74: =MID(Welcome!$C$18,B74,1) ->  | D74: 0 | E74: 0 | G74: 17 | I74: 0 | J74: 0
B75: 18 | C75: =MID(Welcome!$C$18,B75,1) ->  | D75: 0 | E75: 0 | G75: 18 | I75: 0 | J75: 0
B76: 19 | C76: =MID(Welcome!$C$18,B76,1) ->  | D76: 0 | E76: 0 | G76: 19 | I76: 0 | J76: 0
B77: 20 | C77: =MID(Welcome!$C$18,B77,1) ->  | D77: 0 | E77: 0 | G77: 20 | I77: 0 | J77: 0
B78: 21 | C78: =MID(Welcome!$C$18,B78,1) ->  | D78: 0 | E78: 0 | G78: 21 | I78: 0 | J78: 0
B79: 22 | C79: =MID(Welcome!$C$18,B79,1) ->  | D79: 0 | E79: 0 | G79: 22 | I79: 0 | J79: 0
B80: 23 | C80: =MID(Welcome!$C$18,B80,1) ->  | D80: 0 | E80: 0 | G80: 23 | I80: 0 | J80: 0
B81: 24 | C81: =MID(Welcome!$C$18,B81,1) ->  | D81: 0 | E81: 0 | G81: 24 | I81: 0 | J81: 0
B82: 25 | C82: =MID(Welcome!$C$18,B82,1) ->  | D82: 0 | E82: 0 | G82: 25 | I82: 0 | J82: 0
B83: 26 | C83: =MID(Welcome!$C$18,B83,1) ->  | D83: 0 | E83: 0 | G83: 26 | I83: 0 | J83: 0
B84: 27 | C84: =MID(Welcome!$C$18,B84,1) ->  | D84: 0 | E84: 0 | G84: 27 | I84: 0 | J84: 0
B85: 28 | C85: =MID(Welcome!$C$18,B85,1) ->  | D85: 0 | E85: 0 | G85: 28 | I85: 0 | J85: 0
B86: 29 | C86: =MID(Welcome!$C$18,B86,1) ->  | D86: 0 | E86: 0 | G86: 29 | I86: 0 | J86: 0
B87: 30 | C87: =MID(Welcome!$C$18,B87,1) ->  | D87: 0 | E87: 0 | G87: 30 | I87: 0 | J87: 0
B88: 31 | C88: =MID(Welcome!$C$18,B88,1) ->  | D88: 0 | E88: 0 | G88: 31 | I88: 0 | J88: 0
B89: 32 | C89: =MID(Welcome!$C$18,B89,1) ->  | D89: 0 | E89: 0 | G89: 32 | I89: 0 | J89: 0
B90: 33 | C90: =MID(Welcome!$C$18,B90,1) ->  | D90: 0 | E90: 0 | G90: 33 | I90: 0 | J90: 0
B91: 34 | C91: =MID(Welcome!$C$18,B91,1) ->  | D91: 0 | E91: 0 | G91: 34 | I91: 0 | J91: 0
B92: 35 | C92: =MID(Welcome!$C$18,B92,1) ->  | D92: 0 | E92: 0 | G92: 35 | I92: 0 | J92: 0
B93: 36 | C93: =MID(Welcome!$C$18,B93,1) ->  | D93: 0 | E93: 0 | G93: 36 | I93: 0 | J93: 0
B94: 37 | C94: =MID(Welcome!$C$18,B94,1) ->  | D94: 0 | E94: 0 | G94: 37 | I94: 0 | J94: 0
B95: 38 | C95: =MID(Welcome!$C$18,B95,1) ->  | D95: 0 | E95: 0 | G95: 38 | I95: 0 | J95: 0
B96: 39 | C96: =MID(Welcome!$C$18,B96,1) ->  | D96: 0 | E96: 0 | G96: 39 | I96: 0 | J96: 0
B97: 40 | C97: =MID(Welcome!$C$18,B97,1) ->  | D97: 0 | E97: 0 | G97: 40 | I97: 0 | J97: 0
B98: 41 | C98: =MID(Welcome!$C$18,B98,1) ->  | D98: 0 | E98: 0 | G98: 41 | I98: 0 | J98: 0
B99: 42 | C99: =MID(Welcome!$C$18,B99,1) ->  | D99: 0 | E99: 0 | G99: 42 | I99: 0 | J99: 0
B100: 43 | C100: =MID(Welcome!$C$18,B100,1) ->  | D100: 0 | E100: 0 | G100: 43 | I100: 0 | J100: 0
B101: 44 | C101: =MID(Welcome!$C$18,B101,1) ->  | D101: 0 | E101: 0 | G101: 44 | I101: 0 | J101: 0
B102: 45 | C102: =MID(Welcome!$C$18,B102,1) ->  | D102: 0 | E102: 0 | G102: 45 | I102: 0 | J102: 0
B103: 46 | C103: =MID(Welcome!$C$18,B103,1) ->  | D103: 0 | E103: 0 | G103: 46 | I103: 0 | J103: 0
B104: 47 | C104: =MID(Welcome!$C$18,B104,1) ->  | D104: 0 | E104: 0 | G104: 47 | I104: 0 | J104: 0
B105: 48 | C105: =MID(Welcome!$C$18,B105,1) ->  | D105: 0 | E105: 0 | G105: 48 | I105: 0 | J105: 0
B106: 49 | C106: =MID(Welcome!$C$18,B106,1) ->  | D106: 0 | E106: 0 | G106: 49 | I106: 0 | J106: 0
B107: 50 | C107: =MID(Welcome!$C$18,B107,1) ->  | D107: 0 | E107: 0 | G107: 50 | I107: 0 | J107: 0
